Workbook

Sheet Instructions
A1: Highway Safety Improvement Program | K1: Version | L1: ='Safety Application'!J110 -> 20210621
A2: Formal Funding Application
A3: Scoring Tool Instructions
A5: The instructions can be used to understand the functionality of the tool. The tool attempts to complete as many fields as possible form information entered in the Economic Crash Analysis Tool (ECAT).
A7: The worksheets have been protected because the tool is standardized to import into the ODOT Central Office Database. Once submitted, the complete data layouts will be imported into the current database. At this point, the district will be able to make any changes desired prior to the HSIP Program Committee Review.
A10: I recommend starting a new application by importing data from existing ECAT Tool(s). The import functionality will obtain information from (1) an ECAT Tool that does not have a fundamental change in Safety Performance Function (SPF) ('No' response in Cell "K14" on the Project Information Worksheet) or (2) an ECAT Tool that has have a fundamental change in Safety Performance Function (SPF) ('Yes' response in Cell "K14" on the Project Information Worksheet). Follow the coded prompts. Two files will be required for Item (2). The order of import is does not matter. Following the import process, please verify the data as assumptions have been made. For example, it was assumed that only one route (major route) was used in the Project Element Description Table when determining project limits (All NLFIDs match in Column F). Note: If you choose to import a new dataset, any previous information will be overridden.
A13: At times, it will be necessary to change the font size of cells to make the text visible. Once the tool is activated, select the cells you desire to decrease / increase the font size (selection can be contiguous or noncontiguous cells). Once the cells have been selected, select the desired functionality.
A16: This tool can be used to add rows of details for either work locations of funding sources. Submitters can add up to a total of 10 work locations. Similarly, there are a ten (10) total funding sources possible (including the three already defined). For funding sources, we are asking that each source be individually itemized.

Sheet Safety Application
A1: General Project Information | Z1: Show Conditional Format: | AA1: Yes
A2: Project Sponsoring Agency | D2: ODOT District 12 | Z2: Lat Long Format: | AA2: Yes
A3: Project Name | D3: CUY-271-9.28 Safety Application | Z3: Priority Rank Format: | AA3: Yes
A4: PID | D4: 113156
A5: Applicant Name | D5: Brian Blayney, D12 Traffic Planning Engineer
A6: Contact Phone | D6: 216-584-2108
A7: Contact Email | D7: Brian.Blayney@dot.ohio.gov
A9: Location Information
A10: ODOT District | C10: =IFERROR(VLOOKUP(H10,RefTables!A:B,2,FALSE),"") -> 12 | F10: County | H10: =MID(A62,2,3) -> CUY
A11: Route Number | C11: =IFERROR(MID(A62,5,2)&"-"&MID(A62,7,5)*1&IF(LEFT(A62,1)="S",IF(RIGHT(A62,2)="*C","R",MID(A62,13,1)),IF(RIGHT(A62,3)="**C","",MID(A62,12,1))),"") -> IR-271* | F11: Road Name | H11: Interstate Route 271
A12: Begin Logpoint | C12: =IF(C62="","",C62) -> 9.36 | F12: End Logpoint | H12: =IF(D62="","",D62) -> 11.29
A13: Begin Latitude | C13: 41.470931 | F13: Begin Longitude | H13: -81.48896
A14: End Latitude | C14: 41.50346 | F14: End Longitude | H14: -81.476894
A16: Project Description
A17: Summary of Crash Patterns
A18: A total of 296 crashes were found to occur in the northbound direction during the years 2017, 2018 and 2019, including 6 serious injury crashes and 103 total injury crashes (approximately 35% of the total). 285 of the crashes (96%l) were either rear-end, sideswipe - passing or fixed object crashes and these crash types include all 6 serious injury crashes. The rear-end crashes are mainly occurring in the area of the Cedar Road / Brainard Road exit ramp from I-271 NB. These rear-ends are occurring due to the back up occurring during the peak hours at the I-271 NB / Cedar Road / Brainard Road ramp intersection. The queue from this signal extends onto the I-271 NB mainline and causes rear-end crashes to occur on the ramp and freeway mainline. A previous improvement project at the ramp terminal intersection did improve operations, but not significantly enough to eliminate the traffic queue. The next step to attempt to mitigate this crash pattern would be to provide more storage spacing for exiting traffic to prevent motorists from queuing onto the I-271 mainline. The sideswipe - passing crashes appear to be occurring for two reasons. The first is due to the typical lane changes that occur along a busy freeway segment. The second reason appears to be due to the ramps between the I-271 NB Local and Express lanes. Traffic in the express lanes that wish to exit onto Cedar Road / Brainard Road have approximately 3,000 feet to make the 3 necessary lanes changes to exit. These lane changes can be difficult, especially during the peak hours. This section is essentially one large weave section with traffic entering the local lanes on the left side, making three lane changes and exiting onto Cedar Road / Brainard Road on the right side. While this is occurring, other traffic is also moving into the left lane to position themselves to be able to enter the express lanes via a ramp that exists north of the Cedar Road / Brainard Road interchange. The most cost effective strategy to mitigate these sideswipe - passing crashes would be to find a way to increase the weaving distance between the two ramps discussed above.
A19: Summary of Recommended Countermeasures
A20: The improvement plan that is being investigated would be to switch the location of the express lane ramps that exist today. Additionally, a ramp exists approximately 7,800 feet south of the interchange that allows traffic to enter the express lanes from the local lanes. Reversing these ramps would provide I-271 NB traffic an additional 3,000’ to make the required 3 lane changes to exit I-271. Additionally, this change would increase the distance for I-271 NB traffic entering from Chagrin Boulevard to make the lane changes to access the express lanes. The improvement plan that is being investigated is to lengthen the exit ramp and provide a second lane for traffic to exit I-271 NB. This configuration would create one exit lane with approximately 3,600 feet of storage before the ramp split and a second with approximately 2,000 feet of storage for a combined total of nearly 5,600 feet, which is quadruple the distance provided today. This improvement project would significantly reduce the likelihood and frequency of I-271 NB traffic queueing onto the I-271 mainline, which is frequently occurring and creates operational and safety issues along the interstate. There are two possible geometric concerns with this proposed improvement plan which was investigated to ensure this improvement is feasible. The first is the need to add a fifth travel lane under the Cedar Road bridge over I-271. The geometric evaluation of the existing bridge found that five (5) 12’ travel lanes can fit under the existing bridge with 18’ of shoulder-width. To achieve this width underneath the bridge, a concrete d-wall integral to the bridge piers would need to be constructed as part of the improvement project. The proposed geometric layout of the improvement proposes to provide a 10’ inside shoulder width and an 8’ outside shoulder width.
A21: Project Priority Information
A22: The following segment rankings were found on I-271 within the safety improvement area according to the 2018 HSIP Safety Priority Rankings: - Urban Freeway Segments #12, #62, #350, #458, #833 and #1173 - Urban Ramp Segments #98 and #359
A23: Crash Data
A24: Crash Totals
A25: (average per year) | F25: Fatal & Serious Injury (KA) | G25: Visible Injury (B) | H25: Non-Visible (C) | I25: Property Damage Only (O) | J25: Total
A26: Existing Conditions: Predicted Crash Frequency | F26: =IF(ScoringCalculations!D43=0,"",ScoringCalculations!D43) -> 1.946 | G26: =IF(ScoringCalculations!E43=0,"",ScoringCalculations!E43) -> 6.6798 | H26: =IF(ScoringCalculations!F43=0,"",ScoringCalculations!F43) -> 9.0299 | I26: =IF(ScoringCalculations!G43=0,"",ScoringCalculations!G43) -> 48.8502 | J26: =ROUND(SUM(F26:I26),2) -> 66.51
A27: Existing Conditions: Expected Crash Frequency | F27: =IF(ScoringCalculations!D44=0,"",ScoringCalculations!D44) -> 2.1027 | G27: =IF(ScoringCalculations!E44=0,"",ScoringCalculations!E44) -> 7.2898 | H27: =IF(ScoringCalculations!F44=0,"",ScoringCalculations!F44) -> 10.0461 | I27: =IF(ScoringCalculations!G44=0,"",ScoringCalculations!G44) -> 55.386 | J27: =ROUND(SUM(F27:I27),2) -> 74.82
A28: Potential for Safety Improvement | F28: =IF(ScoringCalculations!D45=0,"",ScoringCalculations!D45) -> 0.1567 | G28: =IF(ScoringCalculations!E45=0,"",ScoringCalculations!E45) -> 0.61 | H28: =IF(ScoringCalculations!F45=0,"",ScoringCalculations!F45) -> 1.0162 | I28: =IF(ScoringCalculations!G45=0,"",ScoringCalculations!G45) -> 6.5358 | J28: 8.32
A29: ="Proposed Conditions: "&IF('Project Scoring'!H7="ECAT - Change in base SPF","Predicted","Expected")&" Crash Frequency" -> Proposed Conditions: Expected Crash Frequency | F29: =IF(ScoringCalculations!D46=0,"",ScoringCalculations!D46) -> 1.7835 | G29: =IF(ScoringCalculations!E46=0,"",ScoringCalculations!E46) -> 5.9057 | H29: =IF(ScoringCalculations!F46=0,"",ScoringCalculations!F46) -> 7.8929 | I29: =IF(ScoringCalculations!G46=0,"",ScoringCalculations!G46) -> 43.1764 | J29: 58.76
A30: Observed Crashes | F30: =IF(ScoringCalculations!D47="","",ScoringCalculations!D47) -> 0 | G30: =IF(ScoringCalculations!E47="","",ScoringCalculations!E47) -> 13 | H30: =IF(ScoringCalculations!F47="","",ScoringCalculations!F47) -> 19.3333 | I30: =IF(ScoringCalculations!G47="","",ScoringCalculations!G47) -> 66.3333 | J30: 98.67
A31: Observed People Injury Totals
F32: Fatal Injury (K) | G32: Serious Injury (A) | H32: Visible Injury (B) | I32: Non-Visible (C) | J32: Total
A33: Observed People Injury Totals | F33: =IF(ScoringCalculations!D53="","",ScoringCalculations!D53) -> 0 | G33: =IF(ScoringCalculations!E53="","",ScoringCalculations!E53) -> 2 | H33: =IF(ScoringCalculations!F53="","",ScoringCalculations!F53) -> 17 | I33: =IF(ScoringCalculations!G53="","",ScoringCalculations!G53) -> 29.6667 | J33: =ROUND(SUM(F33:I33),2) -> 48.67
A35: Application Scoring
A36: Category | H36: Scoring Value | I36: Points Awarded | J36: Points Possible
A37: Ratio of Observed Fatal and Serious Injuries to Observed Total Crashes | H37: =IF(J30=0,"",ROUND(SUM(F33:G33)/J30,2)) -> 0.02 | I37: =IFERROR(VLOOKUP(H37,ScoringTable!AA:AB,2,TRUE),"") -> 4 | J37: =MAX(ScoringTable!AB:AB) -> 30
A38: Percentage of the Potential for Safety Improvement to Total Expected Crashes | H38: =IF(J27=0,"",IF(J28<0,0,IFERROR(ROUND(J28/J27,4),0))) -> 0.1112 | I38: =IFERROR(VLOOKUP(H38,ScoringTable!AC:AD,2,TRUE),"") -> 8 | J38: =MAX(ScoringTable!AD:AD) -> 20
A39: Relative Severity Index | H39: =IF(ScoringCalculations!B36=0,"",ScoringCalculations!B36) -> 33528.28 | I39: =IFERROR(VLOOKUP(H39,ScoringTable!AE:AF,2,TRUE),"") -> 12 | J39: =MAX(ScoringTable!AF:AF) -> 20
A40: Equivalent Property Damage Only Index | H40: =IF(J27= 0,IF(J30=0,"",ROUND((F30*ScoringCalculations!D48+G30*ScoringCalculations!E48+H30*ScoringCalculations!F48+I30*ScoringCalculations!G48)/J30,2)),ROUND((F30*ScoringCalculations!D48+G30*ScoringCalculations!E48+H30*ScoringCalculations!F48+I30*ScoringCalculations!G48)/J30,2)) -> 2.7 | I40: =IFERROR(VLOOKUP(H40,ScoringTable!AG:AH,2,TRUE),"") -> 8 | J40: =MAX(ScoringTable!AH:AH) -> 20
A41: Location Equity Measure | H41: 0.069 | I41: =IF(H41=0,"",IFERROR(VLOOKUP(H41,ScoringTable!AI:AJ,2,TRUE),"")) -> 0 | J41: =MAX(ScoringTable!AJ:AJ) -> 10
I42: =IFERROR(VLOOKUP(H42,ScoringTable!AM:AN,2,TRUE),"") -> 
I43: =IFERROR(IF(H43<0,0,VLOOKUP(H43,ScoringTable!AO:AP,2,TRUE)),"") -> 
I44: =IFERROR(VLOOKUP(H44,ScoringTable!AQ:AR,2,TRUE),"") -> 
A45: Total | I45: =IF(SUM(I37:I44)=0,"",SUM(I37:I44)) -> 32 | J45: =SUM(J37:J44) -> 100
A47: Safety Key Metrics
A48: Functional Class | D48: 1 - Interstates | G48: Active Transportation Need | J48: 3
A49: Major Route AADT | D49: 128000 | G49: Active Transportation Demand | J49: 3
A50: Maximum Posted Speed Limit | D50: 65 | G50: Bicycle Level of traffic stress (if available)
G51: TOAST Score (if available) | J51: 46.5
A53: Strategic Highway Safety Plan
A54: Ohio Emphasis Area | E54: Serious Crash Types
A55: Ohio Emphasis Area Subcategory | E55: Intersection
A56: FHWA Emphasis Area | E56: Other
A57: FHWA Improvement Category | E57: Interchange design
A58: FHWA Improvement Subcategory | E58: Interchange design - other
A60: Work Locations
A61: NLFID | C61: Begin Logpoint | D61: End Logpoint | E61: Begin Latitude | F61: Begin Longitude | G61: Location Termini (i.e. from Street 1 to Street 2) | AA61: EndLatitude | AB61: EndLongitude
A62: SCUYIR00271**C | C62: 9.36 | D62: 11.29 | E62: =C13 -> 41.470931 | F62: =H13 -> -81.48896 | G62: Approx. 1.5 miles south of Cedar/Brainard to Cedar/Brainard | K62: =IF(OR(E62="",F62=""),"",HYPERLINK(CONCATENATE("http://maps.google.com/maps?q=",+E62,",+",+F62,"+(Begin Project)&iwloc=A&hl=en"),"Google Map")) -> Google Map | M62: =IF(OR(E62="",F62=""),"",HYPERLINK(CONCATENATE("http://bing.com/maps/default.aspx?rtop=1~0&rtp=pos.",E62,"_",F62,"_","Begin Project"),"Bing Maps")) -> Bing Maps | O62: =IF(A62="","",IF(OR(MID(A62,5,2)="IR",MID(A62,5,2)="SR",MID(A62,5,2)="US"),IF(RIGHT(A62,1)="C",HYPERLINK("http://pathweb.pathwayservices.com/ohiopublic/?nlfid='"&A62&"'&logpoint="&C62,"Pathway Images"),"Not Available"),"Not Available")) -> Not Available
K63: =IF(OR(E63="",F63=""),"",HYPERLINK(CONCATENATE("http://maps.google.com/maps?q=",+E63,",+",+F63,"+(Begin Project)&iwloc=A&hl=en"),"Google Map")) ->  | M63: =IF(OR(E63="",F63=""),"",HYPERLINK(CONCATENATE("http://bing.com/maps/default.aspx?rtop=1~0&rtp=pos.",E63,"_",F63,"_","Begin Project"),"Bing Maps")) -> 
A73: Project Funding
A74: Project Phase | D74: Safety Study | E74: Interchange Mod. Study | F74: PE - Environmental | G74: PE - Detailed Design | H74: Right of Way /Utilities | I74: Construction | J74: Total
A75: Fiscal Year | D75: 2022 | E75: 2015 | F75: 2023 | G75: 2024 | I75: 2025
A76: Project Phase Completed | I76: N/A
A77: Previous Safety | D77: 0 | E77: 0 | F77: 0 | G77: 0 | H77: 0 | I77: 0 | J77: =SUM(D77:I77) -> 0
A78: New Safety | D78: 0 | E78: 0 | F78: 0 | G78: 0 | H78: 0 | I78: 2300000 | J78: =SUM(D78:I78) -> 2300000
A79: Sponsor Funding | D79: 0 | E79: 0 | F79: 470000 | G79: 234000 | H79: 0 | I79: =3889640-2300000 -> 1589640 | J79: 2293640
J80: 0
J81: 0
J82: 0
J83: 0
J84: 0
J85: 0
J86: 0
C87: Total | D87: =SUM(D77:D86) -> 0 | E87: =SUM(E77:E86) -> 0 | F87: 470000 | G87: 234000 | H87: 0 | I87: 3889640 | J87: 4593640
A88: Additional Funding Detail
A89: ODOT District 12 has been interested in implementing these improvements for over 5 years, as evidenced by the approved IMS from June 22nd, 2015. ODOT District 12 is requesting construction funding only for this improvement and will use district allocation to cover the approximately $2.3 million in funds not requested from the safety committee.
A91: Safety Economic Analysis Results
A92: Net Present Value of Project | E92: =IF(ScoringCalculations!D58=0,"",ScoringCalculations!D58) -> 4206640 | G92: Net Benefit | I92: =IF(ScoringCalculations!D60=0,"",ScoringCalculations!D60) -> -1924279.55
A93: Net Present Value of Safety Benefits | E93: =IF(ScoringCalculations!D59=0,"",ScoringCalculations!D59) -> 2282360.45 | G93: Benefit / Total Project Cost Ratio | I93: =IF(ScoringCalculations!D61="Unable to calculate","",ROUND(ScoringCalculations!D61,2)) -> 0.54
G94: Benefit / Safety Funding Request Ratio | I94: =IF(E93="","",IF(J78=0,"Please complete project funding table",ROUND(E93/J78,2))) -> 0.99
A96: Project Development
A97: Project Phase | E97: Completed by | H97: Completion Date
A98: Safety Study | E98: GPD Group | H98: 2021-08-01
A99: Interchange Modification Study | E99: Parsons Brinckerhoff | H99: 2015-06-22
A100: PE-Environmental
A101: PE-Detailed Design
A102: Right of Way / Utilities
A104: Applicant Information
A105: Name | F105: Title | I105: Phone Number
A106: John Picuri, P.E. | F106: District 12 Deputy Director | I106: =IF(D6="","",D6) -> 216-584-2108
A107: Signature | I107: Date
I110: Version: | J110: 20210621
A111: The following information should be included in submission of the safety project application: 1. An electronic copy of the Safety Engineering Study 2. All Excel Analysis Files May include Crash Analysis Module (CAM) Tool, Economic Crash Analysis Tool (ECAT), HSIP Application and Scoring Tool. 3. Benefit-Cost Results (Economic Analysis) 4. DSRT approval signatures
A113: ODOT Use Only:
A114: Application ID:
A116: Document Library on Odrive:

Sheet DSRTSignature (hidden)
A1: General Project Information | Z1: Show Conditional Format: | AA1: Yes
A2: Project Sponsoring Agency | Z2: Lat Long Format: | AA2: Yes
A3: Project Name | Z3: Priority Rank Format: | AA3: Yes
A4: PID
A5: Project Manager
A6: Contact Phone
A7: Contact Email
A9: Project Description
A10: Summary of Crash Patterns
A12: Summary of Recommended Countermeasures | B12: Summary of Recommended Countermeasures | C12: Summary of Recommended Countermeasures | D12: Summary of Recommended Countermeasures | E12: Summary of Recommended Countermeasures | F12: Summary of Recommended Countermeasures | G12: Summary of Recommended Countermeasures | H12: Summary of Recommended Countermeasures | I12: Summary of Recommended Countermeasures | J12: Summary of Recommended Countermeasures
A14: Project Priority Information | B14: Project Priority Information | C14: Project Priority Information | D14: Project Priority Information | E14: Project Priority Information | F14: Project Priority Information | G14: Project Priority Information | H14: Project Priority Information | I14: Project Priority Information | J14: Project Priority Information
A17: District Safety Review Team Signatures
A18: Name | F18: Title | I18: Approve | J18: Disapprove
F19: Planning & Engineering Administrator | I19: ¨ | J19: ¨
A20: Signature | I20: Date
A22: Comments:
A23: Name | F23: Title | I23: Approve | J23: Disapprove
F24: Highway Management Adminstrator | I24: ¨ | J24: ¨
A25: Signature | I25: Date
A27: Comments:
A28: Name | F28: Title | I28: Approve | J28: Disapprove
F29: Design Engineer | I29: ¨ | J29: ¨
A30: Signature | I30: Date
A32: Comments:
A33: Name | F33: Title | I33: Approve | J33: Disapprove
F34: Planning Manager | I34: ¨ | J34: ¨
A35: Signature | I35: Date
A37: Comments:
A38: Name | F38: Title | I38: Approve | J38: Disapprove
F39: Traffic Engineer | I39: ¨ | J39: ¨
A40: Signature | I40: Date
A42: Comments:
A43: Name | F43: Title | I43: Approve | J43: Disapprove
F44: Other | I44: ¨ | J44: ¨
A45: Signature | I45: Date
A47: Comments:

Sheet Project Scoring (hidden)
A1: Project Scoring Summary
A2: General Project Information
A3: Project Name | F3: Contact Email
A4: Project Description | F4: Contact Phone
A5: Reference Number | F5: Date Performed
A6: Analyst | F6: Analysis Year
A7: Agency/Company | F7: Analysis Type Performed
B9: Category | H9: Value | I9: Points Awarded
B10: ='Safety Application'!A37 -> Ratio of Observed Fatal and Serious Injuries to Observed Total Crashes | H10: =IF('Safety Application'!H37="","",'Safety Application'!H37) -> 0.02 | I10: =IF('Safety Application'!I37="","",'Safety Application'!I37) -> 4
B11: ='Safety Application'!A38 -> Percentage of the Potential for Safety Improvement to Total Expected Crashes | H11: =IF('Safety Application'!H38="","",'Safety Application'!H38) -> 0.1112 | I11: =IF('Safety Application'!I38="","",'Safety Application'!I38) -> 8
B12: ='Safety Application'!A39 -> Relative Severity Index | H12: =IF('Safety Application'!H39="","",'Safety Application'!H39) -> 33528.28 | I12: =IF('Safety Application'!I39="","",'Safety Application'!I39) -> 12
B13: ='Safety Application'!A40 -> Equivalent Property Damage Only Index | H13: =IF('Safety Application'!H40="","",'Safety Application'!H40) -> 2.7 | I13: =IF('Safety Application'!I40="","",'Safety Application'!I40) -> 8
B14: ='Safety Application'!A41 -> Location Equity Measure | H14: =IF('Safety Application'!H41="","",'Safety Application'!H41) -> 0.069 | I14: =IF('Safety Application'!I41="","",'Safety Application'!I41) -> 0
B16: Safety Application Score | I16: =SUM(I10:I14) -> 32

Sheet ScoringCalculations
A1: Project Scoring Summary | AA1: HSM Analysis Type: | AB1: ECAT - Change in base SPF
A2: Project Name | C2: CUY-271 Safety Application | F2: Contact Email | H2: cdeibel@gpdgroup.com
A3: Project Description | C3: Interstate Safety Improvement | F3: Contact Phone | H3: 3305722495
A4: Reference Number | C4: 2020089.15 | F4: Date Performed | H4: 2021-07-13
A5: Analyst | C5: Curtis J. Deibel, PE, RSP | F5: Analysis Year | H5: 2021
A6: Agency/Company | C6: GPD Group | F6: Analysis Type Performed
A8: Relative Severity Index Calculation | AI8: All Sites
A9: ODOT District | B9: STW | AA9: NLFID: | AE9: FindTruck | AF9: 0 | AI9: HSM Elements Only | BA9: Crash Costs (2020)
A10: Urban Area | B10: No | AA10: Blog: | AE10: FindVC | AF10: 0 | AI10: Observed Elements Only | BA10: KA | BB10: B | BC10: C | BD10: O
A11: Freeway | B11: Yes | AA11: Elog: | BA11: 422724.5966 | BB11: 54138.59844 | BC11: 47325.15774 | BD11: 8080.348351
AA12: WAADT: | BA12: =ROUND(BA11/$BD$11,2) -> 52.32 | BB12: =ROUND(BB11/$BD$11,2) -> 6.7 | BC12: =ROUND(BC11/$BD$11,2) -> 5.86 | BD12: =ROUND(BD11/$BD$11,2) -> 1
A13: Fill in the Number of Crashes by Crash Type | AA13: WAADTT:
A14: Crash Type | B14: Number of Crashes | C14: Crash Type Severity Calc | D14: RSI Multiplier | AA14: WVCRatio:
A15: Unknown | B15: 0.1632 | C15: =IF(OR($B$9="",$B$10="",$B$11=""),"",B15*D15) -> 1780.1856 | D15: =IFERROR(ROUND(IF($B$9="STW",SUMIFS(RSI_Data!$F:$F,RSI_Data!$C:$C,$B$10,RSI_Data!$D:$D,$B$11,RSI_Data!$E:$E,$A15)/SUMIFS(RSI_Data!$G:$G,RSI_Data!$C:$C,$B$10,RSI_Data!$D:$D,$B$11,RSI_Data!$E:$E,$A15),SUMIFS(RSI_Data!$F:$F,RSI_Data!$C:$C,$B$10,RSI_Data!$D:$D,$B$11,RSI_Data!$A:$A,$B$9,RSI_Data!$E:$E,$A15)/SUMIFS(RSI_Data!$G:$G,RSI_Data!$C:$C,$B$10,RSI_Data!$D:$D,$B$11,RSI_Data!$A:$A,$B$9,RSI_Data!$E:$E,$A15)),0),0) -> 10908 | AA15: TotalLength:
A16: Head On | B16: 0.1327 | C16: =IF(OR($B$9="",$B$10="",$B$11=""),"",B16*D16) -> 11901.4649 | D16: =IFERROR(ROUND(IF($B$9="STW",SUMIFS(RSI_Data!$F:$F,RSI_Data!$C:$C,$B$10,RSI_Data!$D:$D,$B$11,RSI_Data!$E:$E,$A16)/SUMIFS(RSI_Data!$G:$G,RSI_Data!$C:$C,$B$10,RSI_Data!$D:$D,$B$11,RSI_Data!$E:$E,$A16),SUMIFS(RSI_Data!$F:$F,RSI_Data!$C:$C,$B$10,RSI_Data!$D:$D,$B$11,RSI_Data!$A:$A,$B$9,RSI_Data!$E:$E,$A16)/SUMIFS(RSI_Data!$G:$G,RSI_Data!$C:$C,$B$10,RSI_Data!$D:$D,$B$11,RSI_Data!$A:$A,$B$9,RSI_Data!$E:$E,$A16)),0),0) -> 89687 | AA16: Functional Class: | AC16: =IFERROR(VLOOKUP(AB16,RefTables!E27:F34,2,FALSE),"Other") -> Other
A17: Rear End | B17: 36.4456 | C17: 1428339.51 | D17: =IFERROR(ROUND(IF($B$9="STW",SUMIFS(RSI_Data!$F:$F,RSI_Data!$C:$C,$B$10,RSI_Data!$D:$D,$B$11,RSI_Data!$E:$E,$A17)/SUMIFS(RSI_Data!$G:$G,RSI_Data!$C:$C,$B$10,RSI_Data!$D:$D,$B$11,RSI_Data!$E:$E,$A17),SUMIFS(RSI_Data!$F:$F,RSI_Data!$C:$C,$B$10,RSI_Data!$D:$D,$B$11,RSI_Data!$A:$A,$B$9,RSI_Data!$E:$E,$A17)/SUMIFS(RSI_Data!$G:$G,RSI_Data!$C:$C,$B$10,RSI_Data!$D:$D,$B$11,RSI_Data!$A:$A,$B$9,RSI_Data!$E:$E,$A17)),0),0) -> 39191 | AA17: Truck %: | AB17: =IFERROR(ROUND(AB13/AB12,4),"") -> 
A18: Backing | B18: 0.5452 | C18: 6208.1924 | D18: =IFERROR(ROUND(IF($B$9="STW",SUMIFS(RSI_Data!$F:$F,RSI_Data!$C:$C,$B$10,RSI_Data!$D:$D,$B$11,RSI_Data!$E:$E,$A18)/SUMIFS(RSI_Data!$G:$G,RSI_Data!$C:$C,$B$10,RSI_Data!$D:$D,$B$11,RSI_Data!$E:$E,$A18),SUMIFS(RSI_Data!$F:$F,RSI_Data!$C:$C,$B$10,RSI_Data!$D:$D,$B$11,RSI_Data!$A:$A,$B$9,RSI_Data!$E:$E,$A18)/SUMIFS(RSI_Data!$G:$G,RSI_Data!$C:$C,$B$10,RSI_Data!$D:$D,$B$11,RSI_Data!$A:$A,$B$9,RSI_Data!$E:$E,$A18)),0),0) -> 11387
A19: Sideswipe - Meeting | B19: 0.5777 | C19: 179006.6997 | D19: =IFERROR(ROUND(IF($B$9="STW",SUMIFS(RSI_Data!$F:$F,RSI_Data!$C:$C,$B$10,RSI_Data!$D:$D,$B$11,RSI_Data!$E:$E,$A19)/SUMIFS(RSI_Data!$G:$G,RSI_Data!$C:$C,$B$10,RSI_Data!$D:$D,$B$11,RSI_Data!$E:$E,$A19),SUMIFS(RSI_Data!$F:$F,RSI_Data!$C:$C,$B$10,RSI_Data!$D:$D,$B$11,RSI_Data!$A:$A,$B$9,RSI_Data!$E:$E,$A19)/SUMIFS(RSI_Data!$G:$G,RSI_Data!$C:$C,$B$10,RSI_Data!$D:$D,$B$11,RSI_Data!$A:$A,$B$9,RSI_Data!$E:$E,$A19)),0),0) -> 309861
A20: Sideswipe - Passing | B20: 22.3675 | C20: 493024.435 | D20: =IFERROR(ROUND(IF($B$9="STW",SUMIFS(RSI_Data!$F:$F,RSI_Data!$C:$C,$B$10,RSI_Data!$D:$D,$B$11,RSI_Data!$E:$E,$A20)/SUMIFS(RSI_Data!$G:$G,RSI_Data!$C:$C,$B$10,RSI_Data!$D:$D,$B$11,RSI_Data!$E:$E,$A20),SUMIFS(RSI_Data!$F:$F,RSI_Data!$C:$C,$B$10,RSI_Data!$D:$D,$B$11,RSI_Data!$A:$A,$B$9,RSI_Data!$E:$E,$A20)/SUMIFS(RSI_Data!$G:$G,RSI_Data!$C:$C,$B$10,RSI_Data!$D:$D,$B$11,RSI_Data!$A:$A,$B$9,RSI_Data!$E:$E,$A20)),0),0) -> 22042
A21: Angle | B21: 2.0807 | C21: 123955.6218 | D21: =IFERROR(ROUND(IF($B$9="STW",SUMIFS(RSI_Data!$F:$F,RSI_Data!$C:$C,$B$10,RSI_Data!$D:$D,$B$11,RSI_Data!$E:$E,$A21)/SUMIFS(RSI_Data!$G:$G,RSI_Data!$C:$C,$B$10,RSI_Data!$D:$D,$B$11,RSI_Data!$E:$E,$A21),SUMIFS(RSI_Data!$F:$F,RSI_Data!$C:$C,$B$10,RSI_Data!$D:$D,$B$11,RSI_Data!$A:$A,$B$9,RSI_Data!$E:$E,$A21)/SUMIFS(RSI_Data!$G:$G,RSI_Data!$C:$C,$B$10,RSI_Data!$D:$D,$B$11,RSI_Data!$A:$A,$B$9,RSI_Data!$E:$E,$A21)),0),0) -> 59574
A22: Parked Vehicle | B22: 0.5626 | C22: 14572.4652 | D22: =IFERROR(ROUND(IF($B$9="STW",SUMIFS(RSI_Data!$F:$F,RSI_Data!$C:$C,$B$10,RSI_Data!$D:$D,$B$11,RSI_Data!$E:$E,$A22)/SUMIFS(RSI_Data!$G:$G,RSI_Data!$C:$C,$B$10,RSI_Data!$D:$D,$B$11,RSI_Data!$E:$E,$A22),SUMIFS(RSI_Data!$F:$F,RSI_Data!$C:$C,$B$10,RSI_Data!$D:$D,$B$11,RSI_Data!$A:$A,$B$9,RSI_Data!$E:$E,$A22)/SUMIFS(RSI_Data!$G:$G,RSI_Data!$C:$C,$B$10,RSI_Data!$D:$D,$B$11,RSI_Data!$A:$A,$B$9,RSI_Data!$E:$E,$A22)),0),0) -> 25902
A23: Pedestrian | B23: 0.0882 | C23: 21843.0828 | D23: =IFERROR(ROUND(IF($B$9="STW",SUMIFS(RSI_Data!$F:$F,RSI_Data!$C:$C,$B$10,RSI_Data!$D:$D,$B$11,RSI_Data!$E:$E,$A23)/SUMIFS(RSI_Data!$G:$G,RSI_Data!$C:$C,$B$10,RSI_Data!$D:$D,$B$11,RSI_Data!$E:$E,$A23),SUMIFS(RSI_Data!$F:$F,RSI_Data!$C:$C,$B$10,RSI_Data!$D:$D,$B$11,RSI_Data!$A:$A,$B$9,RSI_Data!$E:$E,$A23)/SUMIFS(RSI_Data!$G:$G,RSI_Data!$C:$C,$B$10,RSI_Data!$D:$D,$B$11,RSI_Data!$A:$A,$B$9,RSI_Data!$E:$E,$A23)),0),0) -> 247654
A24: Animal | B24: 5.2252 | C24: 63266.7216 | D24: =IFERROR(ROUND(IF($B$9="STW",SUMIFS(RSI_Data!$F:$F,RSI_Data!$C:$C,$B$10,RSI_Data!$D:$D,$B$11,RSI_Data!$E:$E,$A24)/SUMIFS(RSI_Data!$G:$G,RSI_Data!$C:$C,$B$10,RSI_Data!$D:$D,$B$11,RSI_Data!$E:$E,$A24),SUMIFS(RSI_Data!$F:$F,RSI_Data!$C:$C,$B$10,RSI_Data!$D:$D,$B$11,RSI_Data!$A:$A,$B$9,RSI_Data!$E:$E,$A24)/SUMIFS(RSI_Data!$G:$G,RSI_Data!$C:$C,$B$10,RSI_Data!$D:$D,$B$11,RSI_Data!$A:$A,$B$9,RSI_Data!$E:$E,$A24)),0),0) -> 12108
A25: Train | B25: 0 | C25: 0 | D25: =IFERROR(ROUND(IF($B$9="STW",SUMIFS(RSI_Data!$F:$F,RSI_Data!$C:$C,$B$10,RSI_Data!$D:$D,$B$11,RSI_Data!$E:$E,$A25)/SUMIFS(RSI_Data!$G:$G,RSI_Data!$C:$C,$B$10,RSI_Data!$D:$D,$B$11,RSI_Data!$E:$E,$A25),SUMIFS(RSI_Data!$F:$F,RSI_Data!$C:$C,$B$10,RSI_Data!$D:$D,$B$11,RSI_Data!$A:$A,$B$9,RSI_Data!$E:$E,$A25)/SUMIFS(RSI_Data!$G:$G,RSI_Data!$C:$C,$B$10,RSI_Data!$D:$D,$B$11,RSI_Data!$A:$A,$B$9,RSI_Data!$E:$E,$A25)),0),0) -> 0
A26: Pedalcycles | B26: 0.0801 | C26: 1433.0691 | D26: =IFERROR(ROUND(IF($B$9="STW",SUMIFS(RSI_Data!$F:$F,RSI_Data!$C:$C,$B$10,RSI_Data!$D:$D,$B$11,RSI_Data!$E:$E,$A26)/SUMIFS(RSI_Data!$G:$G,RSI_Data!$C:$C,$B$10,RSI_Data!$D:$D,$B$11,RSI_Data!$E:$E,$A26),SUMIFS(RSI_Data!$F:$F,RSI_Data!$C:$C,$B$10,RSI_Data!$D:$D,$B$11,RSI_Data!$A:$A,$B$9,RSI_Data!$E:$E,$A26)/SUMIFS(RSI_Data!$G:$G,RSI_Data!$C:$C,$B$10,RSI_Data!$D:$D,$B$11,RSI_Data!$A:$A,$B$9,RSI_Data!$E:$E,$A26)),0),0) -> 17891
A27: Other Non-Vehicle | B27: 0 | C27: 0 | D27: =IFERROR(ROUND(IF($B$9="STW",SUMIFS(RSI_Data!$F:$F,RSI_Data!$C:$C,$B$10,RSI_Data!$D:$D,$B$11,RSI_Data!$E:$E,$A27)/SUMIFS(RSI_Data!$G:$G,RSI_Data!$C:$C,$B$10,RSI_Data!$D:$D,$B$11,RSI_Data!$E:$E,$A27),SUMIFS(RSI_Data!$F:$F,RSI_Data!$C:$C,$B$10,RSI_Data!$D:$D,$B$11,RSI_Data!$A:$A,$B$9,RSI_Data!$E:$E,$A27)/SUMIFS(RSI_Data!$G:$G,RSI_Data!$C:$C,$B$10,RSI_Data!$D:$D,$B$11,RSI_Data!$A:$A,$B$9,RSI_Data!$E:$E,$A27)),0),0) -> 0
A28: Fixed Object | B28: 8.1474 | C28: 247526.1594 | D28: =IFERROR(ROUND(IF($B$9="STW",SUMIFS(RSI_Data!$F:$F,RSI_Data!$C:$C,$B$10,RSI_Data!$D:$D,$B$11,RSI_Data!$E:$E,$A28)/SUMIFS(RSI_Data!$G:$G,RSI_Data!$C:$C,$B$10,RSI_Data!$D:$D,$B$11,RSI_Data!$E:$E,$A28),SUMIFS(RSI_Data!$F:$F,RSI_Data!$C:$C,$B$10,RSI_Data!$D:$D,$B$11,RSI_Data!$A:$A,$B$9,RSI_Data!$E:$E,$A28)/SUMIFS(RSI_Data!$G:$G,RSI_Data!$C:$C,$B$10,RSI_Data!$D:$D,$B$11,RSI_Data!$A:$A,$B$9,RSI_Data!$E:$E,$A28)),0),0) -> 30381
A29: Other Object | B29: 1.0254 | C29: 10480.6134 | D29: =IFERROR(ROUND(IF($B$9="STW",SUMIFS(RSI_Data!$F:$F,RSI_Data!$C:$C,$B$10,RSI_Data!$D:$D,$B$11,RSI_Data!$E:$E,$A29)/SUMIFS(RSI_Data!$G:$G,RSI_Data!$C:$C,$B$10,RSI_Data!$D:$D,$B$11,RSI_Data!$E:$E,$A29),SUMIFS(RSI_Data!$F:$F,RSI_Data!$C:$C,$B$10,RSI_Data!$D:$D,$B$11,RSI_Data!$A:$A,$B$9,RSI_Data!$E:$E,$A29)/SUMIFS(RSI_Data!$G:$G,RSI_Data!$C:$C,$B$10,RSI_Data!$D:$D,$B$11,RSI_Data!$A:$A,$B$9,RSI_Data!$E:$E,$A29)),0),0) -> 10221
A30: Overturning | B30: 0.4036 | C30: 32932.1456 | D30: =IFERROR(ROUND(IF($B$9="STW",SUMIFS(RSI_Data!$F:$F,RSI_Data!$C:$C,$B$10,RSI_Data!$D:$D,$B$11,RSI_Data!$E:$E,$A30)/SUMIFS(RSI_Data!$G:$G,RSI_Data!$C:$C,$B$10,RSI_Data!$D:$D,$B$11,RSI_Data!$E:$E,$A30),SUMIFS(RSI_Data!$F:$F,RSI_Data!$C:$C,$B$10,RSI_Data!$D:$D,$B$11,RSI_Data!$A:$A,$B$9,RSI_Data!$E:$E,$A30)/SUMIFS(RSI_Data!$G:$G,RSI_Data!$C:$C,$B$10,RSI_Data!$D:$D,$B$11,RSI_Data!$A:$A,$B$9,RSI_Data!$E:$E,$A30)),0),0) -> 81596
A31: Other Non-Collision | B31: 1.4935 | C31: 18721.0225 | D31: =IFERROR(ROUND(IF($B$9="STW",SUMIFS(RSI_Data!$F:$F,RSI_Data!$C:$C,$B$10,RSI_Data!$D:$D,$B$11,RSI_Data!$E:$E,$A31)/SUMIFS(RSI_Data!$G:$G,RSI_Data!$C:$C,$B$10,RSI_Data!$D:$D,$B$11,RSI_Data!$E:$E,$A31),SUMIFS(RSI_Data!$F:$F,RSI_Data!$C:$C,$B$10,RSI_Data!$D:$D,$B$11,RSI_Data!$A:$A,$B$9,RSI_Data!$E:$E,$A31)/SUMIFS(RSI_Data!$G:$G,RSI_Data!$C:$C,$B$10,RSI_Data!$D:$D,$B$11,RSI_Data!$A:$A,$B$9,RSI_Data!$E:$E,$A31)),0),0) -> 12535
A32: Left Turn | B32: 0.7112 | C32: 28940.8616 | D32: =IFERROR(ROUND(IF($B$9="STW",SUMIFS(RSI_Data!$F:$F,RSI_Data!$C:$C,$B$10,RSI_Data!$D:$D,$B$11,RSI_Data!$E:$E,$A32)/SUMIFS(RSI_Data!$G:$G,RSI_Data!$C:$C,$B$10,RSI_Data!$D:$D,$B$11,RSI_Data!$E:$E,$A32),SUMIFS(RSI_Data!$F:$F,RSI_Data!$C:$C,$B$10,RSI_Data!$D:$D,$B$11,RSI_Data!$A:$A,$B$9,RSI_Data!$E:$E,$A32)/SUMIFS(RSI_Data!$G:$G,RSI_Data!$C:$C,$B$10,RSI_Data!$D:$D,$B$11,RSI_Data!$A:$A,$B$9,RSI_Data!$E:$E,$A32)),0),0) -> 40693
A33: Right Turn | B33: 0 | C33: 0 | D33: =IFERROR(ROUND(IF($B$9="STW",SUMIFS(RSI_Data!$F:$F,RSI_Data!$C:$C,$B$10,RSI_Data!$D:$D,$B$11,RSI_Data!$E:$E,$A33)/SUMIFS(RSI_Data!$G:$G,RSI_Data!$C:$C,$B$10,RSI_Data!$D:$D,$B$11,RSI_Data!$E:$E,$A33),SUMIFS(RSI_Data!$F:$F,RSI_Data!$C:$C,$B$10,RSI_Data!$D:$D,$B$11,RSI_Data!$A:$A,$B$9,RSI_Data!$E:$E,$A33)/SUMIFS(RSI_Data!$G:$G,RSI_Data!$C:$C,$B$10,RSI_Data!$D:$D,$B$11,RSI_Data!$A:$A,$B$9,RSI_Data!$E:$E,$A33)),0),0) -> 27216
A34: Totals | B34: =SUM(B15:B33) -> 80.0498 | C34: =SUM(C15:C33) -> 2683932.25
A36: RSI Value = | B36: =IFERROR(ROUND(C34/B34,2),0) -> 33528.28
A40: All Sites
A41: Crash Frequencies Per Year Summary Results | AA41: Project EB Method Summary Results (Without Animal Crashes)
D42: KA | E42: B | F42: C | G42: O | H42: Total | AD42: KA | AE42: B | AF42: C | AG42: O | AH42: Total
A43: Existing Conditions: Predicted Crash Frequency | D43: =IF($AH$43+$AH$50=0,"",IF($A$40=$AI$10,AD50,IF($A$40=$AI$9,AD43,AD43+AD50))) -> 1.946 | E43: =IF($AH$43+$AH$50=0,"",IF($A$40=$AI$10,AE50,IF($A$40=$AI$9,AE43,AE43+AE50))) -> 6.6798 | F43: 9.0299 | G43: 48.8502 | H43: =ROUND(SUM(D43:G43),2) -> 66.51 | AA43: Existing Conditions: Predicted Crash Frequency | AD43: 1.946 | AE43: 6.6798 | AF43: 9.0299 | AG43: 48.8502 | AH43: 66.5059
A44: Existing Conditions: Expected Crash Frequency | D44: =IF($AH$44+$AH$50=0,"",IF($A$41=$AI$10,AD50,IF($A$41=$AI$9,AD44,AD44+AD50))) -> 2.1027 | E44: =IF($AH$44+$AH$50=0,"",IF($A$41=$AI$10,AE50,IF($A$41=$AI$9,AE44,AE44+AE50))) -> 7.2898 | F44: 10.0461 | G44: 55.386 | H44: 74.82 | AA44: Existing Conditions: Expected Crash Frequency | AD44: 2.1027 | AE44: 7.2898 | AF44: 10.0461 | AG44: 55.386 | AH44: 74.8246
A45: Potential for Safety Improvement | D45: =IF($AH$43+$AH$50=0,"",D44-D43) -> 0.1567 | E45: =IF($AH$43+$AH$50=0,"",E44-E43) -> 0.61 | F45: 1.0162 | G45: 6.5358 | H45: 8.32 | AA45: Potential for Safety Improvement | AD45: 0.1567 | AE45: 0.61 | AF45: 1.0162 | AG45: 6.5358 | AH45: 8.3187
A46: ="Proposed Conditions: "&IF('Project Scoring'!$H$7="ECAT - Change in base SPF","Predicted","Expected")&" Crash Frequency" -> Proposed Conditions: Expected Crash Frequency | D46: =IF($AH$46+$AH$51=0,"",IF($A$43=$AI$10,AD51,IF($A$43=$AI$9,AD46,AD46+AD51))) -> 1.7835 | E46: =IF($AH$46+$AH$51=0,"",IF($A$43=$AI$10,AE51,IF($A$43=$AI$9,AE46,AE46+AE51))) -> 5.9057 | F46: 7.8929 | G46: 43.1764 | H46: 58.76 | AA46: ="Proposed Conditions: "&IF('Project Scoring'!$H$7="ECAT - Change in base SPF","Predicted","Expected")&" Crash Frequency" -> Proposed Conditions: Expected Crash Frequency | AD46: 1.7835 | AE46: 5.9057 | AF46: 7.8929 | AG46: 43.1764 | AH46: 58.7585
A47: Observed Crashes | D47: 0 | E47: 13 | F47: 19.3333 | G47: 66.3333 | H47: 98.67
A48: Equivalent Property Damage Only Factor | D48: =BA12 -> 52.32 | E48: =BB12 -> 6.7 | F48: 5.86 | G48: 1 | AA48: Project EB Method Summary Results (Without Animal Crashes)
A49: Equivalent Property Damage Only Value | D49: =IF($H$44=0,D48*D47,D44*D48) -> 110.013264 | E49: =IF($H$44=0,E48*E47,E44*E48) -> 48.84166 | F49: 58.870146 | G49: 55.386 | H49: =ROUND(SUM(D49:G49),2) -> 273.11 | AD49: KA | AE49: B | AF49: C | AG49: O | AH49: Total
AA50: Existing Conditions Observed Crashes | AD50: 0 | AE50: 0 | AF50: 0 | AG50: 0 | AH50: 0
A51: People Injuries Per Year Summary Results | AA51: Proposed Conditions Observed Crashes | AD51: 0 | AE51: 0 | AF51: 0 | AG51: 0 | AH51: 0
D52: K | E52: A | F52: B | G52: C | H52: Total
A53: Observed Totals | D53: 0 | E53: 2 | F53: 17 | G53: 29.6667 | H53: =ROUND(SUM(D53:G53),2) -> 48.67
A56: Benefit - Cost Ratio Calculations
C58: Net Present Value of Project | D58: 4206640
C59: Net Present Value of Safety Benefits | D59: 2282360.45
C60: Net Benefit | D60: -1924279.55
C61: Benefit / Cost Ratio | D61: 0.5425613903

Sheet ScoringTable
A1: ODOT Highway Safety Improvement Program (HSIP) | AA1: Safety Criteria
A2: Formal Funding Application Scoring Criteria | AA2: Ratio of Observed Fatal and Serious Injuries to Observed Total Crashes | AC2: Percentage of the Potential for Safety Improvement to Total Expected Crashes | AE2: Relative Severity Index | AG2: Equivalent Property Damage Only Index | AI2: Location Equity Measure
A3: =AA2 -> Ratio of Observed Fatal and Serious Injuries to Observed Total Crashes | C3: =AC2 -> Percentage of the Potential for Safety Improvement to Total Expected Crashes | E3: =AE2 -> Relative Severity Index | G3: =AG2 -> Equivalent Property Damage Only Index | I3: =AI2 -> Location Equity Measure | AA3: Value | AB3: Points | AC3: Value | AD3: Points | AE3: Value | AF3: Points | AG3: Value | AH3: Points | AI3: Value | AJ3: Points
A4: Value | B4: Points | C4: Value | D4: Points | E4: Value | F4: Points | G4: Value | H4: Points | I4: Value | J4: Points | AA4: 0 | AB4: 0 | AC4: 0 | AD4: 0 | AE4: 0 | AF4: 0 | AG4: 0 | AH4: 0 | AI4: 0 | AJ4: 0
A5: ="< "&TEXT(AA5,"#0.00") -> < 0.01 | B5: =IF(AB4="","",AB4) -> 0 | C5: ="< "&AC5*100&"%" -> < 2.5% | D5: =IF(AD4="","",AD4) -> 0 | E5: ="< "&TEXT(AE5,"00,000") -> < 20,000 | F5: =IF(AF4="","",AF4) -> 0 | G5: ="< "&TEXT(AG5,"#0.00") -> < 1.00 | H5: =IF(AH4="","",AH4) -> 0 | I5: ="< "&AI5*100&"%" -> < 10% | J5: =IF(AJ4="","",AJ4) -> 0 | AA5: 0.01 | AB5: 2 | AC5: 0.025 | AD5: 2 | AE5: 20000 | AF5: 2 | AG5: 1 | AH5: 2 | AI5: 0.1 | AJ5: 2
A6: =TEXT(AA5,"#0.00")&"-"&TEXT(AA6-0.001,"#0.000") -> 0.01-0.019 | B6: =IF(AB5="","",AB5) -> 2 | C6: =AC5*100&"%"&"-"&(AC6-0.0001)*100&"%" -> 2.5%-4.99% | D6: 2 | E6: =TEXT(AE5,"00,000")&"-"&TEXT(AE6-0.01,"00,000.00") -> 20,000-22,499.99 | F6: 2 | G6: =TEXT(AG5,"#0.00")&"-"&TEXT(AG6-0.001,"#0.000") -> 1.00-1.499 | H6: 2 | I6: =AI5*100&"%"&"-"&(AI6-0.0001)*100&"%" -> 10%-14.99% | J6: 2 | AA6: =AA5+0.01 -> 0.02 | AB6: 4 | AC6: =AC5+0.025 -> 0.05 | AD6: 4 | AE6: =AE5+2500 -> 22500 | AF6: 4 | AG6: =AG5+0.5 -> 1.5 | AH6: 4 | AI6: =AI5+0.05 -> 0.15 | AJ6: 4
A7: =TEXT(AA6,"#0.00")&"-"&TEXT(AA7-0.001,"#0.000") -> 0.02-0.029 | B7: 4 | C7: =AC6*100&"%"&"-"&(AC7-0.0001)*100&"%" -> 5%-7.49% | D7: 4 | E7: =TEXT(AE6,"00,000")&"-"&TEXT(AE7-0.01,"00,000.00") -> 22,500-24,999.99 | F7: 4 | G7: =TEXT(AG6,"#0.00")&"-"&TEXT(AG7-0.001,"#0.000") -> 1.50-1.999 | H7: 4 | I7: =AI6*100&"%"&"-"&(AI7-0.0001)*100&"%" -> 15%-19.99% | J7: 4 | AA7: =AA6+0.01 -> 0.03 | AB7: 6 | AC7: =AC6+0.025 -> 0.075 | AD7: 6 | AE7: =AE6+2500 -> 25000 | AF7: 6 | AG7: =AG6+0.5 -> 2 | AH7: 6 | AI7: =AI6+0.05 -> 0.2 | AJ7: 6
A8: 0.03-0.039 | B8: 6 | C8: 7.5%-9.99% | D8: 6 | E8: 25,000-27,499.99 | F8: 6 | G8: 2.00-2.499 | H8: 6 | I8: 20%-24.99% | J8: 6 | AA8: 0.04 | AB8: 8 | AC8: 0.1 | AD8: 8 | AE8: 27500 | AF8: 8 | AG8: 2.5 | AH8: 8 | AI8: 0.25 | AJ8: 8
A9: 0.04-0.049 | B9: 8 | C9: 10%-12.49% | D9: 8 | E9: 27,500-29,999.99 | F9: 8 | G9: 2.50-2.999 | H9: 8 | I9: 25%-29.99% | J9: 8 | AA9: 0.05 | AB9: 10 | AC9: 0.125 | AD9: 10 | AE9: 30000 | AF9: 10 | AG9: 3 | AH9: 10 | AI9: 0.3 | AJ9: 10
A10: 0.05-0.059 | B10: 10 | C10: 12.5%-14.99% | D10: 10 | E10: 30,000-32,499.99 | F10: 10 | G10: 3.00-3.499 | H10: 10 | I10: ="≥ "&AI9*100&"%" -> ≥ 30% | J10: 10 | AA10: 0.06 | AB10: 12 | AC10: 0.15 | AD10: 12 | AE10: 32500 | AF10: 12 | AG10: 3.5 | AH10: 12
A11: 0.06-0.069 | B11: 12 | C11: 15%-17.49% | D11: 12 | E11: 32,500-34,999.99 | F11: 12 | G11: 3.50-3.999 | H11: 12 | AA11: 0.07 | AB11: 14 | AC11: 0.175 | AD11: 14 | AE11: 35000 | AF11: 14 | AG11: 4 | AH11: 14
A12: 0.07-0.079 | B12: 14 | C12: 17.5%-19.99% | D12: 14 | E12: 35,000-37,499.99 | F12: 14 | G12: 4.00-4.499 | H12: 14 | AA12: 0.08 | AB12: 16 | AC12: 0.2 | AD12: 16 | AE12: 37500 | AF12: 16 | AG12: 4.5 | AH12: 16
A13: 0.08-0.089 | B13: 16 | C13: 20%-22.49% | D13: 16 | E13: 37,500-39,999.99 | F13: 16 | G13: 4.50-4.999 | H13: 16 | AA13: 0.09 | AB13: 18 | AC13: 0.225 | AD13: 18 | AE13: 40000 | AF13: 18 | AG13: 5 | AH13: 18
A14: 0.09-0.099 | B14: 18 | C14: 22.5%-24.99% | D14: 18 | E14: 40,000-42,499.99 | F14: 18 | G14: 5.00-5.499 | H14: 18 | AA14: 0.1 | AB14: 20 | AC14: 0.25 | AD14: 20 | AE14: 42500 | AF14: 20 | AG14: 5.5 | AH14: 20
A15: 0.10-0.109 | B15: 20 | C15: ="≥ "&AC14*100&"%" -> ≥ 25% | D15: 20 | E15: ="≥ "&TEXT(AE14,"00,000") -> ≥ 42,500 | F15: 20 | G15: ="≥ "&TEXT(AG14,"#0.00") -> ≥ 5.50 | H15: 20 | AA15: 0.11 | AB15: 22
A16: 0.11-0.119 | B16: 22 | AA16: 0.12 | AB16: 24
A17: 0.12-0.129 | B17: 24 | AA17: 0.13 | AB17: 26
A18: 0.13-0.139 | B18: 26 | AA18: 0.14 | AB18: 28
A19: 0.14-0.149 | B19: 28 | AA19: 0.15 | AB19: 30
A20: ="≥ "&TEXT(AA19,"#0.00") -> ≥ 0.15 | B20: 30
J24: Total Points
J26: =SUM(MAX(AB4:AB1000),MAX(AD4:AD1000),MAX(AF4:AF1000),MAX(AH4:AH1000),MAX(AJ4:AJ1000),MAX(AL4:AL1000),MAX(AN4:AN1000),MAX(AP4:AP1000),MAX(AR4:AR1000)) -> 100

Sheet RefTables (hidden)
A1: County Code | B1: District Number | D1: Ohio SHSP Emphasis Area | F1: FHWA SHSP Emphasis Area | H1: Improvement Type | I1: Access management | J1: Advanced technology and ITS | K1: Alignment | L1: Interchange design | M1: Intersection geometry | S1: MPH
A2: =LEFT(C2,3) -> ADA | B2: 9 | C2: ADA - Adams | D2: Serious Crash Types | F2: Creating more effective processes and safety management systems | H2: Access management | K2: Alignment - other | L2: Acceleration / deceleration / merge lane | S2: 5
A3: =LEFT(C3,3) -> ALL | B3: 1 | C3: ALL - Allen | D3: High Risk Drivers and Behaviors | F3: Curbing aggressive driving | H3: Advanced technology and ITS | I3: Access management - other | J3: AdvancedtechnologyandITS | K3: Horizontal curve realignment | L3: Convert at-grade intersection to interchange | M3: Auxiliary lanes - add acceleration lane | S3: =S2+5 -> 10
A4: ASD | B4: 3 | C4: ASD - Ashland | D4: Special Vehicles and Roadway Users | F4: Designing safer work zones | H4: Alignment | I4: Change in access - close or restrict existing access | J4: Advanced technology and ITS - other | K4: Horizontal and vertical alignment | L4: Extend existing lane on ramp | M4: Auxiliary lanes - add auxiliary through lane | S4: =S3+5 -> 15
A5: ATB | B5: 4 | C5: ATB - Ashtabula | D5: Data | F5: Enhancing emergency medical capabilities to increase survivability | H5: Animal-related | I5: Change in access - miscellaneous/unspecified | J5: Congestion detection / traffic monitoring system | K5: Vertical alignment or elevation change | L5: Improve intersection radius at ramp terminus | M5: Auxiliary lanes - add left-turn lane | S5: 20
A6: ATH | B6: 10 | C6: ATH - Athens | F6: Ensuring drivers are licensed and fully competent | H6: Interchange design | I6: Grassed median - extend existing | J6: Dynamic message signs | L6: Installation of new lane on ramp | M6: Auxiliary lanes - add right-turn lane | S6: 25
A7: AUG | B7: 7 | C7: AUG - Auglaize | F7: Ensuring safer bicycle travel | H7: Intersection geometry | I7: Median crossover - close crossover | J7: Over height vehicle detection | K7: Roadside | L7: Interchange design - other | M7: Auxiliary lanes - add right-turn lane (free-flow) | S7: 30
A8: BEL | B8: 11 | C8: BEL - Belmont | D8: Data | F8: Improving information and decision support systems | H8: Intersection traffic control | I8: Median crossover - directional crossover | L8: Ramp closure | M8: Auxiliary lanes - add slip lane | S8: 35
A9: BRO | B9: 9 | C9: BRO - Brown | D9: Timely Data | F9: Improving motorcycle safety and increasing motorcycle awareness | H9: Lighting | I9: Median crossover - relocate existing | K9: Barrier end treatments (crash cushions, terminals) | L9: Ramp metering | M9: Auxiliary lanes - add two-way left-turn lane | S9: 40
A10: BUT | B10: 8 | C10: BUT - Butler | D10: Reliable Data | F10: Improving the design and operation of highway intersections | H10: Miscellaneous | I10: Median crossover - unspecified | K10: Barrier transitions | M10: Auxiliary lanes - extend acceleration/deceleration lane | S10: 45
A11: CAR | B11: 11 | C11: CAR - Carroll | D11: Comprehensive Data | F11: Increasing driver safety awareness | H11: Non-infrastructure | I11: Raised island - install new | K11: Barrier - cable | M11: Auxiliary lanes - extend existing left-turn lane | S11: 50
A12: CHP | B12: 7 | C12: CHP - Champaign | D12: Integrated Data and Analysis Systems | F12: Increasing safety enhancements in vehicles | H12: Parking | I12: Raised island - modify existing | K12: Barrier - concrete | M12: Auxiliary lanes - extend existing right-turn lane | S12: =S11+5 -> 55
A13: CLA | B13: 7 | C13: CLA - Clark | F13: Increasing seat belt use and improving airbag effectiveness | H13: Pedestrians and bicyclists | I13: Raised island - remove existing | K13: Barrier- metal | M13: Auxiliary lanes - miscellaneous/other/unspecified | S13: 60
A14: CLE | B14: 8 | C14: CLE - Clermont | D14: SeriousCrashTypes | F14: Instituting graduated licensing for younger drivers | H14: Railroad grade crossings | I14: Raised island - unspecified | K14: Barrier - other | M14: Auxiliary lanes - modify acceleration lane | S14: 65
A15: CLI | B15: 8 | C15: CLI - Clinton | D15: Roadway Departure | F15: Keeping drivers alert | H15: Roadside | K15: Barrier - removal | M15: Auxiliary lanes - modify auxiliary through lane | S15: 70
A16: COL | B16: 11 | C16: COL - Columbiana | D16: Intersection | F16: Keeping vehicles in the roadway | H16: Roadway | K16: Curb or curb and gutter | M16: Auxiliary lanes - modify free-flow turn lane
A17: COS | B17: 5 | C17: COS - Coshocton | D17: Highway Railroad Crossing | F17: Making truck travel safer | H17: Roadway delineation | K17: Drainage improvements | M17: Auxiliary lanes - modify left-turn lane offset
A18: CRA | B18: 3 | C18: CRA - Crawford | F18: Making walking and street crossing easier | H18: Roadway signs and traffic control | K18: Fencing | M18: Auxiliary lanes - modify right-turn lane offset
A19: CUY | B19: 12 | C19: CUY - Cuyahoga | F19: Minimizing the consequences of leaving the road | H19: Shoulder treatments | K19: Removal of roadside objects (trees, poles, etc.) | M19: Auxiliary lanes - modify turn lane storage
A20: DAR | B20: 7 | C20: DAR - Darke | D20: HighRiskDriversandBehaviors | F20: Reducing head-on and across-median crashes | H20: Speed management | K20: Roadside grading | M20: Auxiliary lanes - modify turn lane taper
A21: DEF | B21: 1 | C21: DEF - Defiance | D21: Impaired Drivers | F21: Reducing impaired driving | H21: Work Zone | K21: Roadside - other | M21: Auxiliary lanes - modify two-way left-turn lane
A22: DEL | B22: 6 | C22: DEL - Delaware | D22: Seat Belt | F22: Reducing vehicle-train crashes | M22: Intersection geometrics - miscellaneous/other/unspecified
A23: ERI | B23: 3 | C23: ERI - Erie | D23: Speed | F23: Sustaining proficiency in older drivers | M23: Intersection geometrics - modify intersection corner radius
A24: FAI | B24: 5 | C24: FAI - Fairfield | D24: Young Drivers | F24: Other | H24: Animal-related | I24: Intersection traffic control | J24: Lighting | K24: Roadway | M24: Intersection geometrics - modify skew angle
A25: FAY | B25: 6 | C25: FAY - Fayette | D25: Older Drivers | M25: Intersection geometrics - realignment to align offset cross streets
A26: FRA | B26: 6 | C26: FRA - Franklin | D26: Distracted Drivers | F26: Functional Class | I26: Intersection flashers - add "when flashing" warning sign-mounted | J26: Continuous roadway lighting | K26: Install / remove / modify passing zone | M26: Intersection geometrics - realignment to increase cross street offset
A27: FUL | B27: 2 | C27: FUL - Fulton | E27: 1 | F27: 1 - Interstates | I27: Intersection flashers - add advance emergency vehicle warning sign-mounted | J27: Intersection lighting | K27: Pavement surface - high friction surface | M27: Intersection geometrics - re-assign existing lane use
A28: GAL | B28: 10 | C28: GAL - Gallia | D28: SpecialVehiclesandRoadwayUsers | E28: 2 | F28: 2 - Other Freeways or Expressways | I28: Intersection flashers - add advance heavy vehicle warning sign-mounted | J28: Lighting - other | K28: Pavement surface - miscellaneous | M28: Intersection geometry - other
A29: GEA | B29: 12 | C29: GEA - Geauga | D29: Bicycle Riders | E29: 3 | F29: 3 - Other Principal Arterial Roadway | I29: Intersection flashers - add advance intersection warning sign-mounted | J29: Site lighting - horizontal curve | K29: Roadway narrowing (road diet, roadway reconfiguration) | M29: Splitter island - install on one or more approaches
A30: GRE | B30: 8 | C30: GRE - Greene | D30: Pedestrians | E30: 4 | F30: 4 - Minor Arterial Roadway | I30: Intersection flashers - add miscellaneous/other/unspecified | J30: Site lighting - intersection | K30: Roadway - other | M30: Splitter island - remove from one or more approaches
A31: GUE | B31: 5 | C31: GUE - Guernsey | D31: Commercial Vehicles | E31: 5 | F31: 5 - Major Collector Roadway | I31: Intersection flashers - add overhead (actuated) | J31: Site lighting - interchange | K31: Roadway - restripe to revise separation between opposing lanes and/or shoulder widths | M31: Splitter island - unspecified
A32: HAM | B32: 8 | C32: HAM - Hamilton | D32: Motorcycles | E32: 6 | F32: 6 - Minor Collector Roadway | I32: Intersection flashers - add overhead (continuous) | J32: Site lighting - pedestrian crosswalk | K32: Roadway widening - add lane(s) along segment | M32: Through lanes - add additional through lane
A33: HAN | B33: 1 | C33: HAN - Hancock | E33: 7 | F33: 7 - Local Roadway | I33: Intersection flashers - add stop sign-mounted | K33: Roadway widening - curve
A34: HAR | B34: 1 | C34: HAR - Hardin | E34: 99 | F34: 99 - Other Roadway | I34: Intersection flashers - modify existing | K34: Roadway widening - travel lanes
A35: HAS | B35: 11 | C35: HAS - Harrison | I35: Intersection flashers - remove existing | J35: Parking | K35: Rumble strips - center
A36: HEN | B36: 2 | C36: HEN - Henry | I36: Intersection signing - add basic advance warning | K36: Rumble strips - edge or shoulder
A37: HIG | B37: 9 | C37: HIG - Highland | I37: Intersection signing - add enhanced advance warning (double-up and/or oversize) | J37: Modify parking | K37: Rumble strips - transverse
A38: HOC | B38: 10 | C38: HOC - Hocking | I38: Intersection signing - add enhanced regulatory sign (double-up and/or oversize) | J38: Parking - other | K38: Rumble strips - unspecified or other
A39: HOL | B39: 11 | C39: HOL - Holmes | I39: Intersection signing - miscellaneous/other/unspecified | J39: Remove parking | K39: Superelevation / cross slope
A40: HUR | B40: 3 | C40: HUR - Huron | I40: Intersection signing - relocate existing regulatory sign | J40: Restrict parking
A41: JAC | B41: 9 | C41: JAC - Jackson | I41: Intersection traffic control - other | J41: Truck parking facilities
A42: JEF | B42: 11 | C42: JEF - Jefferson | I42: Modify control - all-way stop to roundabout
A43: KNO | B43: 5 | C43: KNO - Knox | I43: Modify control - modifications to roundabout | J43: Pedestrians and bicyclists | K43: Roadway delineation
A44: LAK | B44: 12 | C44: LAK - Lake | I44: Modify control - no control to roundabout
A45: LAW | B45: 9 | C45: LAW - Lawrence | I45: Modify control - no control to two-way stop | J45: Crosswalk | K45: Improve retroreflectivity
A46: LIC | B46: 5 | C46: LIC - Licking | I46: Modify control - remove right-turn yield | J46: Install new "smart" crosswalk | K46: Longitudinal pavement markings - new
A47: LOG | B47: 7 | C47: LOG - Logan | I47: Modify control - reverse priority of stop condition | J47: Install new crosswalk | K47: Longitudinal pavement markings - remarking
A48: LOR | B48: 3 | C48: LOR - Lorain | I48: Modify control - traffic signal to roundabout | J48: Install sidewalk | K48: Delineators post-mounted or on barrier
A49: LUC | B49: 2 | C49: LUC - Lucas | I49: Modify control - two-way stop to all-way stop | J49: Medians and pedestrian refuge areas | K49: Raised pavement markers
A50: MAD | B50: 6 | C50: MAD - Madison | I50: Modify control - two-way stop to signal operation | J50: Miscellaneous pedestrians and bicyclists | K50: Roadway delineation - other
A51: MAH | B51: 4 | C51: MAH - Mahoning | I51: Modify control - two-way stop to roundabout | J51: Modify existing crosswalk
A52: MAR | B52: 6 | C52: MAR - Marion | I52: Modify control - two-way yield to two-way stop | J52: Pedestrian beacons
A53: MED | B53: 3 | C53: MED - Medina | I53: Pavement Markings - add advance signal ahead | J53: Pedestrian bridge | K53: Roadway signs and traffic control
A54: MEG | B54: 10 | C54: MEG - Meigs | I54: Pavement markings - add advance stop ahead | J54: Pedestrian signal
A55: MER | B55: 7 | C55: MER - Mercer | I55: Pavement markings - add dashed edge line along mainline | J55: Pedestrian signal - audible device | K55: Curve-related warning signs and flashers
A56: MIA | B56: 7 | C56: MIA - Miami | I56: Pavement markings - add lane use symbols | J56: Pedestrian signal - Pedestrian Hybrid Beacon | K56: Sign sheeting - upgrade or replacement
A57: MOE | B57: 10 | C57: MOE - Monroe | I57: Pavement markings - add stop line | J57: Pedestrian signal - install new at intersection | K57: Roadway signs and traffic control - other
A58: MOT | B58: 7 | C58: MOT - Montgomery | I58: Pavement markings - add yield line | J58: Pedestrian signal - install new at non-intersection location | K58: Roadway signs (including post) - new or updated
A59: MRG | B59: 10 | C59: MRG - Morgan | I59: Pavement markings - miscellaneous/other/unspecified | J59: Pedestrian signal - modify existing
A60: MRW | B60: 6 | C60: MRW - Morrow | I60: Pavement markings - refresh existing pavement markings | J60: Pedestrian signal - remove existing
A61: MUS | B61: 5 | C61: MUS - Muskingum | I61: Modify traffic signal - add additional signal heads | J61: Pedestrian warning signs - add/modify flashers
A62: NOB | B62: 10 | C62: NOB - Noble | I62: Modify traffic signal - add backplates | J62: Pedestrian warning signs - overhead
A63: OTT | B63: 2 | C63: OTT - Ottawa | I63: Modify traffic signal - add backplates with retroreflective borders
A64: PAU | B64: 1 | C64: PAU - Paulding | I64: Modify traffic signal - add closed loop system | J64: Railroad grade crossings
A65: PER | B65: 5 | C65: PER - Perry | I65: Modify traffic signal - add emergency vehicle preemption
A66: PIC | B66: 6 | C66: PIC - Pickaway | I66: Modify traffic signal - add flashing yellow arrow | J66: Grade separation
A67: =LEFT(C67,3) -> PIK | B67: 9 | C67: PIK - Pike | I67: Modify traffic signal - add long vehicle detection | J67: Model enforcement activity
A68: POR | B68: 4 | C68: POR - Portage | I68: Modify traffic signal - add railroad preemption | J68: Protective devices
A69: PRE | B69: 8 | C69: PRE - Preble | I69: Modify traffic signal - add wireless system | J69: Railroad grade crossing gates
A70: PUT | B70: 1 | C70: PUT - Putnam | I70: Modify traffic signal - miscellaneous/other/unspecified | J70: Railroad grade crossing signing
A71: RIC | B71: 3 | C71: RIC - Richland | I71: Modify traffic signal - modernization/replacement | J71: Railroad grade crossings - other | K71: Speed management
A72: ROS | B72: 9 | C72: ROS - Ross | I72: Modify traffic signal - modify signal mounting (spanwire to mast arm) | J72: Surface treatment
A73: SAN | B73: 2 | C73: SAN - Sandusky | I73: Modify traffic signal - remove existing signal | J73: Upgrade railroad crossing signal | K73: Modify speed limit
A74: SCI | B74: 9 | C74: SCI - Scioto | I74: Modify traffic signal - replace existing indications (incandescent-to-LED and/or 8-to-12 inch dia.) | J74: Widen crossing for additional lane | K74: Radar speed signs
A75: SEN | B75: 2 | C75: SEN - Seneca | I75: Modify traffic signal timing - left-turn phasing (permissive to protected/permissive) | K75: Speed detection system / truck warning
A76: SHE | B76: 7 | C76: SHE - Shelby | I76: Modify traffic signal timing - left-turn phasing (permissive to protected-only) | K76: Speed management - other
A77: STA | B77: 4 | C77: STA - Stark | I77: Modify traffic signal timing - adjust clearance interval (yellow change and/or all-red) | K77: Traffic calming feature
A78: SUM | B78: 4 | C78: SUM - Summit | I78: Modify traffic signal timing - general retiming
A79: TRU | B79: 4 | C79: TRU - Trumbull | I79: Modify traffic signal timing - signal coordination
A80: TUS | B80: 11 | C80: TUS - Tuscarawas | I80: Systemic improvements - signal-controlled
A81: UNI | B81: 6 | C81: UNI - Union | I81: Systemic improvements - stop-controlled | J81: Miscellaneous
A82: VAN | B82: 1 | C82: VAN - Van Wert
A83: VIN | B83: 10 | C83: VIN - Vinton
A84: WAR | B84: 8 | C84: WAR - Warren
A85: WAS | B85: 10 | C85: WAS - Washington | H85: Non-infrastructure | I85: Shoulder treatments | J85: Work Zone
A86: WAY | B86: 3 | C86: WAY - Wayne | H86: Educational efforts | I86: Widen shoulder – paved or other
A87: WIL | B87: 2 | C87: WIL - Williams | H87: Enforcement | I87: Pave existing shoulders
A88: WOO | B88: 2 | C88: WOO - Wood | H88: Data/traffic records | I88: Shoulder grading
A89: WYA | B89: 1 | C89: WYA - Wyandot | H89: Non-infrastructure - other | I89: Shoulder treatments - other
H90: Outreach
H91: Road safety audits
H92: Training and workforce development
H93: Transportation safety planning

Sheet RSI_Data (hidden)
E1: =F1/G1 -> 28684.98133 | F1: =SUBTOTAL(9,F3:F86584) -> 41586195108 | G1: =SUBTOTAL(9,G3:G86584) -> 1449755
A2: DISTRICT_NBR | B2: NLF_COUNTY_CD | C2: URBAN_AREA | D2: FREEWAY_IND | E2: CRASH_TYPE_CD | F2: CRASH_COST_NBR | G2: Crash_Count | J2: Select
A3: 8 | B3: HAM | C3: No | D3: Yes | E3: Unknown | F3: 8080 | G3: 1 | J3: --CRASH_YR,
A4: 2 | B4: FUL | C4: No | D4: No | E4: Parked Vehicle | F4: 1543230 | G4: 55 | J4: DISTRICT_NBR,
A5: 9 | B5: JAC | C5: No | D5: No | E5: Fixed Object | F5: 38575962 | G5: 923 | J5: NLF_COUNTY_CD,
A6: 6 | B6: FRA | C6: Yes | D6: Yes | E6: Parked Vehicle | F6: 54139 | G6: 1
A7: 8 | B7: BUT | C7: No | D7: Yes | E7: Left Turn | F7: 86459 | G7: 5 | J7: --CASE WHEN ODOT_MAINTAINED_HWY_IND = 'Y' THEN 'Yes'
A8: 3 | B8: HUR | C8: Yes | D8: No | E8: Animal | F8: 24240 | G8: 3 | J8: --ELSE 'No' END AS ODOT_MAINTAINED_HWY_IND,
A9: 11 | B9: TUS | C9: Yes | D9: Yes | E9: Head On | F9: 3163158 | G9: 16
A10: 6 | B10: PIC | C10: No | D10: No | E10: Pedalcycles | F10: 1088889 | G10: 7 | J10: CASE WHEN AREA_CODE = 99999 THEN 'No'
A11: 1 | B11: DEF | C11: Yes | D11: No | E11: Left Turn | F11: 3250546 | G11: 113 | J11: ELSE 'Yes' END AS URBAN_AREA,
A12: 10 | B12: ATH | C12: No | D12: No | E12: Other Object | F12: 121200 | G12: 15
A13: 4 | B13: POR | C13: Yes | D13: No | E13: Right Turn | F13: 1346596 | G13: 105 | J13: --CASE WHEN FUNCTIONAL_CLASS_CD = 1 THEN 'Interstate Route'
A14: 8 | B14: CLI | C14: Yes | D14: No | E14: Backing | F14: 468640 | G14: 58 | J14: --WHEN FUNCTIONAL_CLASS_CD = 2 THEN 'Other Freeways or Expressways'
A15: 7 | B15: LOG | C15: Yes | D15: No | E15: Rear End | F15: 2640047 | G15: 82 | J15: --WHEN FUNCTIONAL_CLASS_CD = 3 THEN 'Other Principal Arterial Roads'
A16: 6 | B16: UNI | C16: Yes | D16: Yes | E16: Overturning | F16: 196114 | G16: 4 | J16: --WHEN FUNCTIONAL_CLASS_CD = 4 THEN 'Minor Arterial Roads'
A17: 4 | B17: POR | C17: No | D17: Yes | E17: Overturning | F17: 797305 | G17: 14 | J17: --WHEN FUNCTIONAL_CLASS_CD = 5 THEN 'Major Collector Roads'
A18: 6 | B18: UNI | C18: Yes | D18: No | E18: Pedalcycles | F18: 882609 | G18: 14 | J18: --WHEN FUNCTIONAL_CLASS_CD = 6 THEN 'Minor Collector Roads'
A19: 2 | B19: HEN | C19: Yes | D19: Yes | E19: Rear End | F19: 722613 | G19: 17 | J19: --WHEN FUNCTIONAL_CLASS_CD = 7 THEN 'Local Roads' END AS FUNCTIONAL_CLASS_CD,
A20: 11 | B20: JEF | C20: No | D20: No | E20: Rear End | F20: 4241433 | G20: 129
A21: 10 | B21: HOC | C21: No | D21: No | E21: Animal | F21: 4812406 | G21: 199 | J21: CASE WHEN FREEWAY_IND = 'N' THEN 'No'
A22: 7 | B22: AUG | C22: Yes | D22: No | E22: Fixed Object | F22: 3300668 | G22: 123 | J22: WHEN FREEWAY_IND = 'Y' THEN 'Yes' END AS FREEWAY_IND,
A23: 9 | B23: PIK | C23: Yes | D23: No | E23: Right Turn | F23: 8080 | G23: 1
A24: 4 | B24: ATB | C24: Yes | D24: No | E24: Other Object | F24: 32320 | G24: 4 | J24: CASE WHEN CRASH_TYPE_CD = 0 THEN 'Unknown'
A25: 7 | B25: MIA | C25: Yes | D25: No | E25: Head On | F25: 8080 | G25: 1 | J25: WHEN CRASH_TYPE_CD = 1 THEN 'Head On'
A26: 2 | B26: WIL | C26: No | D26: No | E26: Pedalcycles | F26: 1276255 | G26: 4 | J26: WHEN CRASH_TYPE_CD = 2 THEN 'Rear End'
A27: 10 | B27: HOC | C27: Yes | D27: No | E27: Animal | F27: 8080 | G27: 1 | J27: WHEN CRASH_TYPE_CD = 3 THEN 'Backing'
A28: 7 | B28: DAR | C28: Yes | D28: No | E28: Left Turn | F28: 8080 | G28: 1 | J28: WHEN CRASH_TYPE_CD = 4 THEN 'Sideswipe - Meeting'
A29: 10 | B29: MEG | C29: Yes | D29: No | E29: Overturning | F29: 232716 | G29: 6 | J29: WHEN CRASH_TYPE_CD = 5 THEN 'Sideswipe - Passing'
A30: 9 | B30: ROS | C30: Yes | D30: Yes | E30: Rear End | F30: 5152006 | G30: 160 | J30: WHEN CRASH_TYPE_CD = 6 THEN 'Angle'
A31: 3 | B31: HUR | C31: Yes | D31: No | E31: Fixed Object | F31: 1926821 | G31: 52 | J31: WHEN CRASH_TYPE_CD = 7 THEN 'Parked Vehicle'
A32: 1 | B32: VAN | C32: Yes | D32: No | E32: Fixed Object | F32: 1750216 | G32: 35 | J32: WHEN CRASH_TYPE_CD = 8 THEN 'Pedestrian'
A33: 8 | B33: WAR | C33: Yes | D33: No | E33: Unknown | F33: 71565 | G33: 4 | J33: WHEN CRASH_TYPE_CD = 9 THEN 'Animal'
A34: 2 | B34: LUC | C34: Yes | D34: No | E34: Other Object | F34: 8080 | G34: 1 | J34: WHEN CRASH_TYPE_CD = 10 THEN 'Train'
A35: 4 | B35: SUM | C35: Yes | D35: No | E35: Rear End | F35: 278113410 | G35: 14540 | J35: WHEN CRASH_TYPE_CD = 11 THEN 'Pedalcycles'
A36: 5 | B36: GUE | C36: Yes | D36: No | E36: Sideswipe - Passing | F36: 8080 | G36: 1 | J36: WHEN CRASH_TYPE_CD = 12 THEN 'Other Non-Vehicle'
A37: 2 | B37: WOO | C37: Yes | D37: Yes | E37: Right Turn | F37: 16160 | G37: 2 | J37: WHEN CRASH_TYPE_CD = 13 THEN 'Fixed Object'
A38: 2 | B38: FUL | C38: Yes | D38: No | E38: Other Object | F38: 24240 | G38: 3 | J38: WHEN CRASH_TYPE_CD = 14 THEN 'Other Object'
A39: 10 | B39: MOE | C39: Yes | D39: No | E39: Other Non-Collision | F39: 8080 | G39: 1 | J39: WHEN CRASH_TYPE_CD = 15 THEN 'Falling From Or In Vehicle'
A40: 11 | B40: TUS | C40: No | D40: No | E40: Other Non-Vehicle | F40: 54139 | G40: 1 | J40: WHEN CRASH_TYPE_CD = 16 THEN 'Overturning'
A41: 11 | B41: TUS | C41: No | D41: Yes | E41: Pedestrian | F41: 422725 | G41: 1 | J41: WHEN CRASH_TYPE_CD = 17 THEN 'Other Non-Collision'
A42: 7 | B42: MOT | C42: Yes | D42: No | E42: Pedestrian | F42: 966647 | G42: 13 | J42: WHEN CRASH_TYPE_CD = 18 THEN 'Left Turn'
A43: 1 | B43: HAN | C43: Yes | D43: Yes | E43: Other Object | F43: 393610 | G43: 39 | J43: WHEN CRASH_TYPE_CD = 19 THEN 'Right Turn' END AS CRASH_TYPE_CD,
A44: 3 | B44: CRA | C44: No | D44: No | E44: Backing | F44: 750429 | G44: 31
A45: 12 | B45: CUY | C45: Yes | D45: Yes | E45: Other Non-Collision | F45: 9985150 | G45: 340 | J45: sum(CASE WHEN CRASH_SEVERITY_CD = '1' THEN 422725
A46: 4 | B46: TRU | C46: No | D46: No | E46: Angle | F46: 16473193 | G46: 367 | J46: WHEN CRASH_SEVERITY_CD = '2' THEN 422725
A47: 10 | B47: GAL | C47: No | D47: No | E47: Pedestrian | F47: 1015947 | G47: 6 | J47: WHEN CRASH_SEVERITY_CD = '3' THEN 54139
A48: 9 | B48: JAC | C48: Yes | D48: No | E48: Unknown | F48: 56560 | G48: 7 | J48: WHEN CRASH_SEVERITY_CD = '4' THEN 47325
A49: 1 | B49: HAN | C49: No | D49: Yes | E49: Rear End | F49: 3389841 | G49: 54 | J49: ELSE 8080 END ) AS CRASH_COST_NBR -- 2020 VALUES
A50: 11 | B50: CAR | C50: Yes | D50: Yes | E50: Rear End | F50: 8080 | G50: 1
A51: 9 | B51: JAC | C51: No | D51: No | E51: Rear End | F51: 5008317 | G51: 112 | J51: ,count(DOCUMENT_NBR) as Crash_Count
A52: 4 | B52: POR | C52: No | D52: No | E52: Right Turn | F52: 1527516 | G52: 67
A53: 3 | B53: WAY | C53: No | D53: Yes | E53: Animal | F53: 902312 | G53: 80 | J53: From warehouse.dbo.oh1_cr_crash_details
A54: 11 | B54: COL | C54: Yes | D54: Yes | E54: Parked Vehicle | F54: 47325 | G54: 1 | J54: where CRASH_YR BETWEEN 2016 AND 2020
A55: 8 | B55: WAR | C55: No | D55: No | E55: Sideswipe - Meeting | F55: 845450 | G55: 2 | J55: Group by --CRASH_YR,
A56: 8 | B56: GRE | C56: Yes | D56: Yes | E56: Rear End | F56: 1708587 | G56: 93 | J56: DISTRICT_NBR,
A57: 11 | B57: COL | C57: Yes | D57: No | E57: Angle | F57: 4242699 | G57: 130 | J57: NLF_COUNTY_CD,
A58: 11 | B58: COL | C58: Yes | D58: No | E58: Sideswipe - Passing | F58: 164838 | G58: 9 | J58: AREA_CODE,
A59: 8 | B59: HAM | C59: No | D59: Yes | E59: Animal | F59: 288570 | G59: 26 | J59: --ODOT_MAINTAINED_HWY_IND,
A60: 2 | B60: LUC | C60: Yes | D60: No | E60: Pedestrian | F60: 1660403 | G60: 11 | J60: --FUNCTIONAL_CLASS_CD,
A61: 12 | B61: GEA | C61: Yes | D61: No | E61: Unknown | F61: 16160 | G61: 2 | J61: FREEWAY_IND,
A62: 3 | B62: ERI | C62: Yes | D62: Yes | E62: Pedestrian | F62: 47325 | G62: 1 | J62: CRASH_TYPE_CD
A63: 8 | B63: WAR | C63: Yes | D63: Yes | E63: Backing | F63: 72720 | G63: 9
A64: 3 | B64: HUR | C64: Yes | D64: No | E64: Parked Vehicle | F64: 78379 | G64: 4
A65: 4 | B65: STA | C65: Yes | D65: No | E65: Pedalcycles | F65: 20755616 | G65: 180
A66: 9 | B66: SCI | C66: No | D66: No | E66: Angle | F66: 15303659 | G66: 253
A67: 5 | B67: MUS | C67: Yes | D67: Yes | E67: Fixed Object | F67: 143019 | G67: 12
A68: 4 | B68: ATB | C68: Yes | D68: No | E68: Other Non-Collision | F68: 834578 | G68: 26
A69: 9 | B69: LAW | C69: Yes | D69: No | E69: Sideswipe - Passing | F69: 3966095 | G69: 225
A70: 4 | B70: MAH | C70: Yes | D70: Yes | E70: Fixed Object | F70: 904988 | G70: 25
A71: 11 | B71: JEF | C71: No | D71: Yes | E71: Angle | F71: 478130 | G71: 3
A72: 2 | B72: HEN | C72: No | D72: Yes | E72: Other Non-Collision | F72: 118779 | G72: 9
A73: 4 | B73: MAH | C73: Yes | D73: No | E73: Angle | F73: 2113700 | G73: 50
A74: 7 | B74: MOT | C74: Yes | D74: No | E74: Fixed Object | F74: 6287778 | G74: 132
A75: 6 | B75: UNI | C75: No | D75: No | E75: Overturning | F75: 5770101 | G75: 58
A76: 2 | B76: SAN | C76: Yes | D76: No | E76: Rear End | F76: 134939 | G76: 11
A77: 6 | B77: MAD | C77: Yes | D77: No | E77: Rear End | F77: 233982 | G77: 7
A78: 4 | B78: SUM | C78: Yes | D78: No | E78: Pedalcycles | F78: 21662123 | G78: 254
A79: 11 | B79: TUS | C79: Yes | D79: No | E79: Other Object | F79: 364528 | G79: 24
A80: 11 | B80: COL | C80: Yes | D80: Yes | E80: Unknown | F80: 8080 | G80: 1
A81: 11 | B81: COL | C81: Yes | D81: No | E81: Right Turn | F81: 1126721 | G81: 59
A82: 1 | B82: HAR | C82: Yes | D82: No | E82: Backing | F82: 16160 | G82: 2
A83: 10 | B83: HOC | C83: Yes | D83: No | E83: Parked Vehicle | F83: 16160 | G83: 2
A84: 8 | B84: HAM | C84: No | D84: Yes | E84: Parked Vehicle | F84: 133784 | G84: 6
A85: 7 | B85: DAR | C85: Yes | D85: Yes | E85: Right Turn | F85: 47325 | G85: 1
A86: 5 | B86: MUS | C86: No | D86: Yes | E86: Parked Vehicle | F86: 140598 | G86: 6
A87: 1 | B87: HAN | C87: No | D87: No | E87: Other Non-Collision | F87: 1078806 | G87: 101
A88: 8 | B88: BUT | C88: Yes | D88: No | E88: Backing | F88: 11899551 | G88: 994
A89: 1 | B89: PUT | C89: No | D89: No | E89: Animal | F89: 6194596 | G89: 705
A90: 10 | B90: MOE | C90: Yes | D90: No | E90: Angle | F90: 109544 | G90: 3
A91: 8 | B91: HAM | C91: Yes | D91: No | E91: Other Non-Collision | F91: 24581883 | G91: 846
A92: 11 | B92: JEF | C92: Yes | D92: Yes | E92: Parked Vehicle | F92: 48480 | G92: 6
A93: 4 | B93: STA | C93: Yes | D93: Yes | E93: Left Turn | F93: 124438 | G93: 4
A94: 8 | B94: GRE | C94: Yes | D94: Yes | E94: Sideswipe - Meeting | F94: 8080 | G94: 1
A95: 4 | B95: ATB | C95: Yes | D95: No | E95: Rear End | F95: 2710903 | G95: 95
A96: 2 | B96: SAN | C96: Yes | D96: Yes | E96: Backing | F96: 102619 | G96: 7
A97: 7 | B97: MIA | C97: Yes | D97: Yes | E97: Parked Vehicle | F97: 1360966 | G97: 43
A98: 2 | B98: SAN | C98: Yes | D98: No | E98: Left Turn | F98: 545637 | G98: 31
A99: 2 | B99: SAN | C99: Yes | D99: Yes | E99: Unknown | F99: 16160 | G99: 2
A100: 5 | B100: MUS | C100: No | D100: Yes | E100: Overturning | F100: 1874316 | G100: 17
A101: 8 | B101: GRE | C101: Yes | D101: No | E101: Right Turn | F101: 6764211 | G101: 418
A102: 10 | B102: GAL | C102: No | D102: No | E102: Sideswipe - Passing | F102: 2230393 | G102: 71
A103: 9 | B103: SCI | C103: Yes | D103: No | E103: Other Non-Collision | F103: 786098 | G103: 20
A104: 1 | B104: HAN | C104: No | D104: Yes | E104: Fixed Object | F104: 3809516 | G104: 137
A105: 12 | B105: LAK | C105: Yes | D105: Yes | E105: Pedalcycles | F105: 54139 | G105: 1
A106: 3 | B106: MED | C106: No | D106: No | E106: Left Turn | F106: 12959102 | G106: 298
A107: 4 | B107: SUM | C107: Yes | D107: No | E107: Unknown | F107: 152365 | G107: 14
A108: 10 | B108: MOE | C108: No | D108: No | E108: Overturning | F108: 6300287 | G108: 78
A109: 5 | B109: MUS | C109: Yes | D109: No | E109: Angle | F109: 36012906 | G109: 1230
A110: 1 | B110: HAN | C110: Yes | D110: Yes | E110: Angle | F110: 16160 | G110: 2
A111: 11 | B111: BEL | C111: No | D111: Yes | E111: Head On | F111: 580749 | G111: 10
A112: 1 | B112: WYA | C112: No | D112: Yes | E112: Fixed Object | F112: 592405 | G112: 22
A113: 4 | B113: MAH | C113: Yes | D113: Yes | E113: Rear End | F113: 263175 | G113: 18
A114: 2 | B114: LUC | C114: No | D114: Yes | E114: Head On | F114: 422725 | G114: 1
A115: 10 | B115: HOC | C115: No | D115: No | E115: Rear End | F115: 4952763 | G115: 133
A116: 1 | B116: VAN | C116: Yes | D116: No | E116: Head On | F116: 275648 | G116: 13
A117: 6 | B117: MAD | C117: No | D117: No | E117: Pedestrian | F117: 3702352 | G117: 16
A118: 7 | B118: CHP | C118: Yes | D118: No | E118: Sideswipe - Passing | F118: 16160 | G118: 2
A119: 1 | B119: PUT | C119: Yes | D119: No | E119: Left Turn | F119: 8080 | G119: 1
A120: 7 | B120: LOG | C120: Yes | D120: No | E120: Fixed Object | F120: 6563913 | G120: 144
A121: 10 | B121: ATH | C121: Yes | D121: No | E121: Sideswipe - Meeting | F121: 54139 | G121: 1
A122: 3 | B122: LOR | C122: Yes | D122: No | E122: Rear End | F122: 915229 | G122: 59
A123: 4 | B123: STA | C123: No | D123: No | E123: Backing | F123: 1167686 | G123: 112
A124: 7 | B124: CLA | C124: Yes | D124: Yes | E124: Sideswipe - Meeting | F124: 422725 | G124: 1
A125: 1 | B125: ALL | C125: Yes | D125: No | E125: Pedestrian | F125: 101464 | G125: 2
A126: 2 | B126: WOO | C126: Yes | D126: No | E126: Animal | F126: 1323516 | G126: 141
A127: 4 | B127: ATB | C127: Yes | D127: Yes | E127: Other Non-Collision | F127: 62219 | G127: 2
A128: 11 | B128: JEF | C128: Yes | D128: No | E128: Animal | F128: 16160 | G128: 2
A129: 2 | B129: HEN | C129: Yes | D129: Yes | E129: Fixed Object | F129: 873712 | G129: 30
A130: 5 | B130: FAI | C130: Yes | D130: No | E130: Angle | F130: 1051918 | G130: 66
A131: 10 | B131: WAS | C131: Yes | D131: No | E131: Other Non-Collision | F131: 88880 | G131: 11
A132: 3 | B132: LOR | C132: Yes | D132: No | E132: Left Turn | F132: 32347624 | G132: 939
A133: 5 | B133: MUS | C133: Yes | D133: Yes | E133: Rear End | F133: 283728 | G133: 14
A134: 3 | B134: MED | C134: Yes | D134: No | E134: Backing | F134: 676299 | G134: 78
A135: 5 | B135: MUS | C135: No | D135: Yes | E135: Left Turn | F135: 54139 | G135: 1
A136: 9 | B136: PIK | C136: Yes | D136: No | E136: Overturning | F136: 397665 | G136: 11
A137: 12 | B137: CUY | C137: No | D137: No | E137: Fixed Object | F137: 8331996 | G137: 162
A138: 7 | B138: SHE | C138: Yes | D138: No | E138: Animal | F138: 32320 | G138: 4
A139: 12 | B139: CUY | C139: Yes | D139: No | E139: Right Turn | F139: 8938859 | G139: 435
A140: 1 | B140: ALL | C140: No | D140: No | E140: Other Non-Vehicle | F140: 8080 | G140: 1
A141: 10 | B141: VIN | C141: No | D141: No | E141: Sideswipe - Passing | F141: 1989857 | G141: 37
A142: 7 | B142: LOG | C142: Yes | D142: No | E142: Backing | F142: 1960008 | G142: 175
A143: 11 | B143: BEL | C143: No | D143: No | E143: Sideswipe - Passing | F143: 3629638 | G143: 154
A144: 9 | B144: ROS | C144: Yes | D144: Yes | E144: Fixed Object | F144: 5837612 | G144: 146
A145: 5 | B145: LIC | C145: Yes | D145: Yes | E145: Rear End | F145: 8390607 | G145: 319
A146: 11 | B146: BEL | C146: Yes | D146: Yes | E146: Other Object | F146: 328970 | G146: 31
A147: 3 | B147: LOR | C147: Yes | D147: Yes | E147: Parked Vehicle | F147: 664787 | G147: 9
A148: 3 | B148: MED | C148: No | D148: No | E148: Overturning | F148: 5656496 | G148: 75
A149: 11 | B149: COL | C149: Yes | D149: No | E149: Sideswipe - Passing | F149: 2480023 | G149: 172
A150: 4 | B150: STA | C150: Yes | D150: Yes | E150: Head On | F150: 55405 | G150: 2
A151: 1 | B151: DEF | C151: Yes | D151: No | E151: Head On | F151: 1464624 | G151: 25
A152: 1 | B152: DEF | C152: Yes | D152: No | E152: Train | F152: 430805 | G152: 2
A153: 8 | B153: PRE | C153: No | D153: Yes | E153: Animal | F153: 1041977 | G153: 73
A154: 7 | B154: MOT | C154: Yes | D154: No | E154: Sideswipe - Passing | F154: 113120645 | G154: 6224
A155: 3 | B155: WAY | C155: Yes | D155: No | E155: Parked Vehicle | F155: 133784 | G155: 6
A156: 2 | B156: SAN | C156: Yes | D156: No | E156: Right Turn | F156: 252563 | G156: 15
A157: 10 | B157: NOB | C157: No | D157: No | E157: Head On | F157: 1285936 | G157: 24
A158: 6 | B158: UNI | C158: No | D158: No | E158: Other Object | F158: 143019 | G158: 12
A159: 3 | B159: HUR | C159: Yes | D159: No | E159: Overturning | F159: 70299 | G159: 3
A160: 2 | B160: OTT | C160: No | D160: No | E160: Other Non-Collision | F160: 3968510 | G160: 84
A161: 10 | B161: MEG | C161: No | D161: No | E161: Sideswipe - Meeting | F161: 961808 | G161: 5
A162: 7 | B162: CLA | C162: Yes | D162: No | E162: Animal | F162: 4535952 | G162: 384
A163: 6 | B163: FRA | C163: Yes | D163: Yes | E163: Parked Vehicle | F163: 11865786 | G163: 237
A164: 6 | B164: FRA | C164: Yes | D164: No | E164: Other Non-Collision | F164: 8080 | G164: 1
A165: 10 | B165: WAS | C165: Yes | D165: No | E165: Sideswipe - Passing | F165: 1183841 | G165: 80
A166: 2 | B166: WIL | C166: Yes | D166: No | E166: Fixed Object | F166: 94539 | G166: 6
A167: 6 | B167: DEL | C167: Yes | D167: Yes | E167: Other Non-Collision | F167: 326549 | G167: 25
A168: 6 | B168: MAD | C168: Yes | D168: No | E168: Animal | F168: 239979 | G168: 24
A169: 7 | B169: MIA | C169: No | D169: No | E169: Fixed Object | F169: 33133611 | G169: 946
A170: 6 | B170: UNI | C170: No | D170: Yes | E170: Angle | F170: 556509 | G170: 7
A171: 6 | B171: MAR | C171: No | D171: No | E171: Right Turn | F171: 1090379 | G171: 30
A172: 3 | B172: RIC | C172: Yes | D172: No | E172: Sideswipe - Passing | F172: 918954 | G172: 47
A173: 8 | B173: BUT | C173: Yes | D173: No | E173: Backing | F173: 878410 | G173: 99
A174: 3 | B174: HUR | C174: No | D174: No | E174: Overturning | F174: 8265493 | G174: 75
A175: 1 | B175: DEF | C175: No | D175: No | E175: Pedalcycles | F175: 1009133 | G175: 6
A176: 8 | B176: CLI | C176: No | D176: Yes | E176: Sideswipe - Passing | F176: 3148901 | G176: 104
A177: 1 | B177: HAN | C177: Yes | D177: No | E177: Angle | F177: 1054821 | G177: 37
A178: 10 | B178: ATH | C178: No | D178: Yes | E178: Other Non-Collision | F178: 55405 | G178: 2
A179: 3 | B179: HUR | C179: Yes | D179: No | E179: Right Turn | F179: 102619 | G179: 7
A180: 7 | B180: DAR | C180: No | D180: No | E180: Other Non-Collision | F180: 714051 | G180: 51
A181: 10 | B181: WAS | C181: No | D181: No | E181: Overturning | F181: 12183359 | G181: 116
A182: 5 | B182: KNO | C182: Yes | D182: No | E182: Angle | F182: 79645 | G182: 5
A183: 3 | B183: ERI | C183: No | D183: Yes | E183: Sideswipe - Meeting | F183: 47325 | G183: 1
A184: 7 | B184: AUG | C184: Yes | D184: No | E184: Head On | F184: 594488 | G184: 6
A185: 8 | B185: BUT | C185: Yes | D185: Yes | E185: Left Turn | F185: 1617584 | G185: 30
A186: 1 | B186: HAN | C186: Yes | D186: Yes | E186: Overturning | F186: 8080 | G186: 1
A187: 4 | B187: TRU | C187: Yes | D187: No | E187: Overturning | F187: 8080 | G187: 1
A188: 2 | B188: FUL | C188: No | D188: Yes | E188: Animal | F188: 1088041 | G188: 107
A189: 2 | B189: HEN | C189: Yes | D189: No | E189: Rear End | F189: 164949 | G189: 5
A190: 10 | B190: WAS | C190: Yes | D190: No | E190: Right Turn | F190: 1562595 | G190: 99
A191: 10 | B191: MRG | C191: No | D191: No | E191: Angle | F191: 5290226 | G191: 93
A192: 3 | B192: MED | C192: Yes | D192: No | E192: Angle | F192: 31763856 | G192: 1107
A193: 10 | B193: ATH | C193: No | D193: Yes | E193: Angle | F193: 8080 | G193: 1
A194: 11 | B194: TUS | C194: No | D194: Yes | E194: Other Object | F194: 330125 | G194: 36
A195: 6 | B195: MRW | C195: Yes | D195: No | E195: Fixed Object | F195: 32320 | G195: 4
A196: 8 | B196: GRE | C196: Yes | D196: No | E196: Left Turn | F196: 305436 | G196: 15
A197: 4 | B197: MAH | C197: Yes | D197: No | E197: Sideswipe - Passing | F197: 105040 | G197: 13
A198: 4 | B198: SUM | C198: Yes | D198: No | E198: Backing | F198: 2484948 | G198: 267
A199: 5 | B199: GUE | C199: Yes | D199: No | E199: Pedestrian | F199: 1525242 | G199: 8
A200: 4 | B200: ATB | C200: No | D200: No | E200: Left Turn | F200: 8235896 | G200: 148
... 7108 more rows

Sheet Import (hidden)
A1: Application ID: | C1: =IF('Safety Application'!A115="","Not Assigned",'Safety Application'!A115) -> Not Assigned
A4: General Application Data
A5: https://extranet.dot.state.oh.us/divisions/Planning/plan/HSIP_applications/Lists/AppData/ImportView.aspx
A6: Title | B6: Cycle | C6: AppID | D6: District | E6: CountyCd | F6: Sponsor | G6: Project Name | H6: PID | I6: ProjectManager | J6: PM_Phone | K6: PM_Email | L6: Applicant_Name | M6: Applicant_Title | N6: Applicant_Phone | O6: ApplicationDt | P6: RouteNbr | Q6: RouteName | R6: Blog | S6: Elog | T6: FolderPath
A7: =C7 -> Not Assigned | B7: =LEFT(C7,6) -> Not As | C7: =C1 -> Not Assigned | D7: ='Safety Application'!C10 -> 12 | E7: =LEFT('Safety Application'!H10,3) -> CUY | F7: =IF('Safety Application'!D2="","",'Safety Application'!D2) -> ODOT District 12 | G7: =IF('Safety Application'!D3="","",'Safety Application'!D3) -> CUY-271-9.28 Safety Application | H7: =IF('Safety Application'!D4="","",'Safety Application'!D4) -> 113156 | I7: =IF('Safety Application'!D5="","",'Safety Application'!D5) -> Brian Blayney, D12 Traffic Planning Engineer | J7: =IF('Safety Application'!D6="","",'Safety Application'!D6) -> 216-584-2108 | K7: =IF('Safety Application'!D7="","",'Safety Application'!D7) -> Brian.Blayney@dot.ohio.gov | L7: =IF('Safety Application'!A106="","",'Safety Application'!A106) -> John Picuri, P.E. | M7: =IF('Safety Application'!F106="","",'Safety Application'!F106) -> District 12 Deputy Director | N7: ='Safety Application'!I106 -> 216-584-2108 | O7: =IF('Safety Application'!I108="","",MONTH('Safety Application'!I108)&"/"&DAY('Safety Application'!I108)&"/"&YEAR('Safety Application'!I108)) ->  | P7: ='Safety Application'!C11 -> IR-271* | Q7: ='Safety Application'!H11 -> Interstate Route 271 | R7: ='Safety Application'!C12 -> 9.36 | S7: ='Safety Application'!H12 -> 11.29 | T7: =IF(LEFT('Safety Application'!A117,1)="\",'Safety Application'!A117,"\\itcfs007.dot.state.oh.us\odrive"&MID('Safety Application'!A117,FIND("\",'Safety Application'!A117,1),100)) -> 
A10: Project Priority
A11: https://extranet.dot.state.oh.us/divisions/Planning/plan/HSIP_applications/Lists/PriorityInfo/ImportView.aspx
A12: AppID | B12: PriorityText
A13: =C1 -> Not Assigned | B13: =IF('Safety Application'!A22="","",'Safety Application'!A22) -> The following segment rankings were found on I-271 within the safety improvement area according to the 2018 HSIP Safety Priority Rankings: - Urban Freeway Segments #12, #62, #350, #458, #833 and #1173 - Urban Ramp Segments #98 and #359
A16: Application Summary of Crash Patterns and Recommended Countermeasures
A17: https://extranet.dot.state.oh.us/divisions/Planning/plan/HSIP_applications/Lists/CrashPatterns/ImportView.aspx
A18: AppID | B18: SummaryText | C18: RecCountermeasure
A19: =A13 -> Not Assigned | B19: ='Safety Application'!A18 -> A total of 296 crashes were found to occur in the northbound direction during the years 2017, 2018 and 2019, including 6 serious injury crashes and 103 total injury crashes (approximately 35% of the total). 285 of the crashes (96%l) were either rear-end, sideswipe - passing or fixed object crashes and these crash types include all 6 serious injury crashes. The rear-end crashes are mainly occurring in the area of the Cedar Road / Brainard Road exit ramp from I-271 NB. These rear-ends are occurring due to the back up occurring during the peak hours at the I-271 NB / Cedar Road / Brainard Road ramp intersection. The queue from this signal extends onto the I-271 NB mainline and causes rear-end crashes to occur on the ramp and freeway mainline. A previous improvement project at the ramp terminal intersection did improve operations, but not significantly enough to eliminate the traffic queue. The next step to attempt to mitigate this crash pattern would be to provide more storage spacing for exiting traffic to prevent motorists from queuing onto the I-271 mainline. The sideswipe - passing crashes appear to be occurring for two reasons. The first is due to the typical lane changes that occur along a busy freeway segment. The second reason appears to be due to the ramps between the I-271 NB Local and Express lanes. Traffic in the express lanes that wish to exit onto Cedar Road / Brainard Road have approximately 3,000 feet to make the 3 necessary lanes changes to exit. These lane changes can be difficult, especially during the peak hours. This section is essentially one large weave section with traffic entering the local lanes on the left side, making three lane changes and exiting onto Cedar Road / Brainard Road on the right side. While this is occurring, other traffic is also moving into the left lane to position themselves to be able to enter the express lanes via a ramp that exists north of the Cedar Road / Brainard Road interchange. The most cost effective strategy to mitigate these sideswipe - passing crashes would be to find a way to increase the weaving distance between the two ramps discussed above. | C19: ='Safety Application'!A20 -> The improvement plan that is being investigated would be to switch the location of the express lane ramps that exist today. Additionally, a ramp exists approximately 7,800 feet south of the interchange that allows traffic to enter the express lanes from the local lanes. Reversing these ramps would provide I-271 NB traffic an additional 3,000’ to make the required 3 lane changes to exit I-271. Additionally, this change would increase the distance for I-271 NB traffic entering from Chagrin Boulevard to make the lane changes to access the express lanes. The improvement plan that is being investigated is to lengthen the exit ramp and provide a second lane for traffic to exit I-271 NB. This configuration would create one exit lane with approximately 3,600 feet of storage before the ramp split and a second with approximately 2,000 feet of storage for a combined total of nearly 5,600 feet, which is quadruple the distance provided today. This improvement project would significantly reduce the likelihood and frequency of I-271 NB traffic queueing onto the I-271 mainline, which is frequently occurring and creates operational and safety issues along the interstate. There are two possible geometric concerns with this proposed improvement plan which was investigated to ensure this improvement is feasible. The first is the need to add a fifth travel lane under the Cedar Road bridge over I-271. The geometric evaluation of the existing bridge found that five (5) 12’ travel lanes can fit under the existing bridge with 18’ of shoulder-width. To achieve this width underneath the bridge, a concrete d-wall integral to the bridge piers would need to be constructed as part of the improvement project. The proposed geometric layout of the improvement proposes to provide a 10’ inside shoulder width and an 8’ outside shoulder width.
A22: Application Crash Data
A23: https://extranet.dot.state.oh.us/divisions/Planning/plan/HSIP_applications/Lists/CrashData/ImportView.aspx
A24: AppID | B24: Pred_Ex_KA | C24: Pred_Ex_B | D24: Pred_Ex_C | E24: Pred_Ex_O | F24: Exp_Ex_KA | G24: Exp_Ex_B | H24: Exp_Ex_C | I24: Exp_Ex_O | J24: PSI_KA | K24: PSI_B | L24: PSI_C | M24: PSI_O | N24: Prop_Type | O24: Prop_KA | P24: Prop_B | Q24: Prop_C | R24: Prop_O | S24: Obs_KA | T24: Obs_B | U24: Obs_C | V24: Obs_O | W24: Obs_People_K | X24: Obs_People_A | Y24: Obs_People_B | Z24: Obs_People_C
A25: =A19 -> Not Assigned | B25: ='Safety Application'!F26 -> 1.946 | C25: ='Safety Application'!G26 -> 6.6798 | D25: ='Safety Application'!H26 -> 9.0299 | E25: ='Safety Application'!I26 -> 48.8502 | F25: ='Safety Application'!F27 -> 2.1027 | G25: ='Safety Application'!G27 -> 7.2898 | H25: ='Safety Application'!H27 -> 10.0461 | I25: ='Safety Application'!I27 -> 55.386 | J25: ='Safety Application'!F28 -> 0.1567 | K25: ='Safety Application'!G28 -> 0.61 | L25: ='Safety Application'!H28 -> 1.0162 | M25: ='Safety Application'!I28 -> 6.5358 | N25: =IF(ScoringCalculations!$AB$1="ECAT - Change in base SPF","Predicted","Expected") -> Predicted | O25: ='Safety Application'!F29 -> 1.7835 | P25: ='Safety Application'!G29 -> 5.9057 | Q25: ='Safety Application'!H29 -> 7.8929 | R25: ='Safety Application'!I29 -> 43.1764 | S25: ='Safety Application'!F30 -> 0 | T25: ='Safety Application'!G30 -> 13 | U25: ='Safety Application'!H30 -> 19.3333 | V25: ='Safety Application'!I30 -> 66.3333 | W25: ='Safety Application'!F33 -> 0 | X25: ='Safety Application'!G33 -> 2 | Y25: ='Safety Application'!H33 -> 17 | Z25: ='Safety Application'!I33 -> 29.6667
A28: Application Scoring
A29: https://extranet.dot.state.oh.us/divisions/Planning/plan/HSIP_applications/Lists/AppScoring/ImportView.aspx
A30: AppID | B30: Expected_Value | C30: Expected_Points | D30: ObservedFSI_Value | E30: ObservedFSI_Points | F30: PercPSI_Value | G30: PercPSI_Points | H30: RSI_Value | I30: RSI_Points | J30: EPDO_Value | K30: EPDO_Points | L30: VCRatio_Value | M30: VCRatio_Points | N30: BCRatio_Value | O30: BCRatio_Points | P30: FundRequest_Value | Q30: FundRequest_Points | R30: LocEquity_Value | S30: LocEquity_Points | T30: BCRatio_Safety_Value | U30: NetBenefit | V30: NetPV_Project | W30: NetPV_Safety
A31: =A25 -> Not Assigned | D31: ='Safety Application'!H37 -> 0.02 | E31: ='Safety Application'!I37 -> 4 | F31: ='Safety Application'!H38 -> 0.1112 | G31: ='Safety Application'!I38 -> 8 | H31: ='Safety Application'!H39 -> 33528.28 | I31: ='Safety Application'!I39 -> 12 | J31: ='Safety Application'!H40 -> 2.7 | K31: ='Safety Application'!I40 -> 8 | N31: ='Safety Application'!I93 -> 0.54 | R31: ='Safety Application'!H41 -> 0.069 | S31: ='Safety Application'!I41 -> 0 | T31: ='Safety Application'!I94 -> 0.99 | U31: ='Safety Application'!I92 -> -1924279.55 | V31: ='Safety Application'!E92 -> 4206640 | W31: ='Safety Application'!E93 -> 2282360.45
A34: Strategic Highway Safety Plan
A35: https://extranet.dot.state.oh.us/divisions/Planning/plan/HSIP_applications/Lists/SHSP/ImportView.aspx
A36: AppID | B36: Functional Class | C36: MajAADT | D36: OhioEmpArea | E36: OhioEmpSub | F36: FHWAEmpArea | G36: FHWA_ImprovCat | H36: FHWA_ImprovSubCat
A37: =A31 -> Not Assigned | B37: ='Safety Application'!D48 -> 1 - Interstates | C37: ='Safety Application'!D49 -> 128000 | D37: ='Safety Application'!E54 -> Serious Crash Types | E37: ='Safety Application'!E55 -> Intersection | F37: ='Safety Application'!E56 -> Other | G37: ='Safety Application'!E57 -> Interchange design | H37: ='Safety Application'!E58 -> Interchange design - other
A40: Application Work Locations
A41: https://extranet.dot.state.oh.us/divisions/Planning/plan/HSIP_applications/Lists/WorkLocations/ImportView.aspx
A42: RouteID | B42: AppID | C42: Location ID | D42: NLFID | E42: Begin Logpoint | F42: End Logpoint | G42: startLatitude | H42: startLongitude | I42: endLatitude | J42: endLongitude | K42: Termini
A43: =IF(D43="","",MID(D43,5,2)&"-"&IFERROR(MID(D43,7,5)*1,MID(D43,7,5))&IF(LEFT(D43,1)="S",IF(RIGHT(D43,2)="*C","",MID(D43,13,1)),IF(RIGHT(D43,3)="**C","",MID(D43,12,1)))) -> IR-271* | B43: =IF(C43="","",$A$37) -> Not Assigned | C43: =IF(D43="","",1) -> 1 | D43: =IF('Safety Application'!A62=0,"",'Safety Application'!A62) -> SCUYIR00271**C | E43: =IF(D43="","",'Safety Application'!C62) -> 9.36 | F43: =IF(D43="","",'Safety Application'!D62) -> 11.29 | G43: =IF(D43="","",'Safety Application'!E62) -> 41.470931 | H43: =IF(D43="","",'Safety Application'!F62) -> -81.48896 | I43: =IF(D43="","",'Safety Application'!AA62) -> 0 | J43: =IF(D43="","",'Safety Application'!AB62) -> 0 | K43: =IF(D43="","",'Safety Application'!G62) -> Approx. 1.5 miles south of Cedar/Brainard to Cedar/Brainard
A44: =IF(D44="","",MID(D44,5,2)&"-"&IFERROR(MID(D44,7,5)*1,MID(D44,7,5))&IF(LEFT(D44,1)="S",IF(RIGHT(D44,2)="*C","",MID(D44,13,1)),IF(RIGHT(D44,3)="**C","",MID(D44,12,1)))) ->  | B44: =IF(C44="","",$A$37) ->  | C44: =IF(D44="","",C43+1) ->  | D44: =IF('Safety Application'!A63=0,"",'Safety Application'!A63) ->  | E44: =IF(D44="","",'Safety Application'!C63) ->  | F44: =IF(D44="","",'Safety Application'!D63) ->  | G44: =IF(D44="","",'Safety Application'!E63) ->  | H44: =IF(D44="","",'Safety Application'!F63) ->  | K44: =IF(D44="","",'Safety Application'!G63) -> 
C45: =IF(D45="","",C44+1) ->  | D45: =IF('Safety Application'!A64=0,"",'Safety Application'!A64) ->  | E45: =IF(D45="","",'Safety Application'!C64) ->  | F45: =IF(D45="","",'Safety Application'!D64) ->  | G45: =IF(D45="","",'Safety Application'!E64) ->  | H45: =IF(D45="","",'Safety Application'!F64) ->  | K45: =IF(D45="","",'Safety Application'!G64) -> 
D46: =IF('Safety Application'!A65=0,"",'Safety Application'!A65) ->  | E46: =IF(D46="","",'Safety Application'!C65) ->  | F46: =IF(D46="","",'Safety Application'!D65) ->  | G46: =IF(D46="","",'Safety Application'!E65) ->  | H46: =IF(D46="","",'Safety Application'!F65) ->  | K46: =IF(D46="","",'Safety Application'!G65) -> 
D47: =IF('Safety Application'!A66=0,"",'Safety Application'!A66) ->  | E47: =IF(D47="","",'Safety Application'!C66) ->  | F47: =IF(D47="","",'Safety Application'!D66) ->  | G47: =IF(D47="","",'Safety Application'!E66) ->  | H47: =IF(D47="","",'Safety Application'!F66) ->  | K47: =IF(D47="","",'Safety Application'!G66) -> 
D48: =IF('Safety Application'!A67=0,"",'Safety Application'!A67) ->  | E48: =IF(D48="","",'Safety Application'!C67) ->  | F48: =IF(D48="","",'Safety Application'!D67) ->  | G48: =IF(D48="","",'Safety Application'!E67) ->  | H48: =IF(D48="","",'Safety Application'!F67) ->  | K48: =IF(D48="","",'Safety Application'!G67) -> 
D49: =IF('Safety Application'!A68=0,"",'Safety Application'!A68) ->  | E49: =IF(D49="","",'Safety Application'!C68) ->  | F49: =IF(D49="","",'Safety Application'!D68) ->  | G49: =IF(D49="","",'Safety Application'!E68) ->  | H49: =IF(D49="","",'Safety Application'!F68) ->  | K49: =IF(D49="","",'Safety Application'!G68) -> 
D50: =IF('Safety Application'!A69=0,"",'Safety Application'!A69) ->  | E50: =IF(D50="","",'Safety Application'!C69) ->  | F50: =IF(D50="","",'Safety Application'!D69) ->  | G50: =IF(D50="","",'Safety Application'!E69) ->  | H50: =IF(D50="","",'Safety Application'!F69) ->  | K50: =IF(D50="","",'Safety Application'!G69) -> 
D51: =IF('Safety Application'!A70=0,"",'Safety Application'!A70) ->  | E51: =IF(D51="","",'Safety Application'!C70) ->  | F51: =IF(D51="","",'Safety Application'!D70) ->  | G51: =IF(D51="","",'Safety Application'!E70) ->  | H51: =IF(D51="","",'Safety Application'!F70) ->  | K51: =IF(D51="","",'Safety Application'!G70) -> 
D52: =IF('Safety Application'!A71=0,"",'Safety Application'!A71) ->  | E52: =IF(D52="","",'Safety Application'!C71) ->  | F52: =IF(D52="","",'Safety Application'!D71) ->  | G52: =IF(D52="","",'Safety Application'!E71) ->  | H52: =IF(D52="","",'Safety Application'!F71) ->  | K52: =IF(D52="","",'Safety Application'!G71) -> 
A54: Project Funding
A55: https://extranet.dot.state.oh.us/divisions/Planning/plan/HSIP_applications/Lists/Funding/ImportView.aspx
A56: AppID | B56: FY_SafetyStudy | C56: FY_IMS | D56: FY_PE_Enviro | E56: FY_PE_Design | F56: FY_ROW | G56: FY_Const | H56: NewSafety_AMT_SafetyStudy | I56: NewSafety_AMT_IMS | J56: NewSafety_AMT_PE_Enviro | K56: NewSafety_AMT_PE_Design | L56: NewSafety_AMT_ROW | M56: NewSafety_AMT_Const | N56: PrevSafety_AMT_SafetyStudy | O56: PrevSafety_AMT_IMS | P56: PrevSafety_AMT_PE_Enviro | Q56: PrevSafety_AMT_PE_Design | R56: PrevSafety_AMT_ROW | S56: PrevSafety_AMT_Const | T56: Sponsor_AMT_SafetyStudy | U56: Sponsor_AMT_IMS | V56: Sponsor_AMT_PE_Enviro | W56: Sponsor_AMT_PE_Design | X56: Sponsor_AMT_ROW | Y56: Sponsor_AMT_Const | Z56: Alt1_Source | AA56: Alt1_AMT_SafetyStudy | AB56: Alt1_AMT_IMS | AC56: Alt1_AMT_PE_Enviro | AD56: Alt1_AMT_PE_Design | AE56: Alt1_AMT_ROW | AF56: Alt1_AMT_Const | AG56: Alt2_Source | AH56: Alt2_AMT_SafetyStudy | AI56: Alt2_AMT_IMS | AJ56: Alt2_AMT_PE_Enviro | AK56: Alt2_AMT_PE_Design | AL56: Alt2_AMT_ROW | AM56: Alt2_AMT_Const | AN56: Alt3_Source | AO56: Alt3_AMT_SafetyStudy | AP56: Alt3_AMT_IMS | AQ56: Alt3_AMT_PE_Enviro | AR56: Alt3_AMT_PE_Design | AS56: Alt3_AMT_ROW | AT56: Alt3_AMT_Const | AU56: Alt4_Source | AV56: Alt4_AMT_SafetyStudy | AW56: Alt4_AMT_IMS | AX56: Alt4_AMT_PE_Enviro | AY56: Alt4_AMT_PE_Design | AZ56: Alt4_AMT_ROW | BA56: Alt4_AMT_Const | BB56: Alt5_Source | BC56: Alt5_AMT_SafetyStudy | BD56: Alt5_AMT_IMS | BE56: Alt5_AMT_PE_Enviro | BF56: Alt5_AMT_PE_Design | BG56: Alt5_AMT_ROW | BH56: Alt5_AMT_Const | BI56: Alt6_Source | BJ56: Alt6_AMT_SafetyStudy | BK56: Alt6_AMT_IMS | BL56: Alt6_AMT_PE_Enviro | BM56: Alt6_AMT_PE_Design | BN56: Alt6_AMT_ROW | BO56: Alt6_AMT_Const | BP56: Alt7_Source | BQ56: Alt7_AMT_SafetyStudy | BR56: Alt7_AMT_IMS | BS56: Alt7_AMT_PE_Enviro | BT56: Alt7_AMT_PE_Design | BU56: Alt7_AMT_ROW | BV56: Alt7_AMT_Const | BW56: AddtlDetails
A57: =A37 -> Not Assigned | B57: =IF('Safety Application'!D75=0,"",'Safety Application'!D75) -> 2022 | C57: =IF('Safety Application'!E75=0,"",'Safety Application'!E75) -> 2015 | D57: =IF('Safety Application'!F75=0,"",'Safety Application'!F75) -> 2023 | E57: =IF('Safety Application'!G75=0,"",'Safety Application'!G75) -> 2024 | F57: =IF('Safety Application'!H75=0,"",'Safety Application'!H75) ->  | G57: =IF('Safety Application'!I75=0,"",'Safety Application'!I75) -> 2025 | H57: =IF('Safety Application'!D78=0,"",'Safety Application'!D78) ->  | I57: =IF('Safety Application'!E78=0,"",'Safety Application'!E78) ->  | J57: =IF('Safety Application'!F78=0,"",'Safety Application'!F78) ->  | K57: =IF('Safety Application'!G78=0,"",'Safety Application'!G78) ->  | L57: =IF('Safety Application'!H78=0,"",'Safety Application'!H78) ->  | M57: =IF('Safety Application'!I78=0,"",'Safety Application'!I78) -> 2300000 | N57: =IF('Safety Application'!D77=0,"",'Safety Application'!D77) ->  | O57: =IF('Safety Application'!E77=0,"",'Safety Application'!E77) ->  | P57: =IF('Safety Application'!F77=0,"",'Safety Application'!F77) ->  | Q57: =IF('Safety Application'!G77=0,"",'Safety Application'!G77) ->  | R57: =IF('Safety Application'!H77=0,"",'Safety Application'!H77) ->  | S57: =IF('Safety Application'!I77=0,"",'Safety Application'!I77) ->  | T57: =IF('Safety Application'!D79=0,"",'Safety Application'!D79) ->  | U57: =IF('Safety Application'!E79=0,"",'Safety Application'!E79) ->  | V57: =IF('Safety Application'!F79=0,"",'Safety Application'!F79) -> 470000 | W57: =IF('Safety Application'!G79=0,"",'Safety Application'!G79) -> 234000 | X57: =IF('Safety Application'!H79=0,"",'Safety Application'!H79) ->  | Y57: =IF('Safety Application'!I79=0,"",'Safety Application'!I79) -> 1589640 | Z57: =IF('Safety Application'!A80=0,"",'Safety Application'!A80) ->  | AA57: =IF('Safety Application'!D80=0,"",'Safety Application'!D80) ->  | AB57: =IF('Safety Application'!E80=0,"",'Safety Application'!E80) ->  | AC57: =IF('Safety Application'!F80=0,"",'Safety Application'!F80) ->  | AD57: =IF('Safety Application'!G80=0,"",'Safety Application'!G80) ->  | AE57: =IF('Safety Application'!H80=0,"",'Safety Application'!H80) ->  | AF57: =IF('Safety Application'!I80=0,"",'Safety Application'!I80) ->  | AG57: =IF('Safety Application'!A81=0,"",'Safety Application'!A81) ->  | AH57: =IF('Safety Application'!D81=0,"",'Safety Application'!D81) ->  | AI57: =IF('Safety Application'!E81=0,"",'Safety Application'!E81) ->  | AJ57: =IF('Safety Application'!F81=0,"",'Safety Application'!F81) ->  | AK57: =IF('Safety Application'!G81=0,"",'Safety Application'!G81) ->  | AL57: =IF('Safety Application'!H81=0,"",'Safety Application'!H81) ->  | AM57: =IF('Safety Application'!I81=0,"",'Safety Application'!I81) ->  | AN57: =IF('Safety Application'!A82=0,"",'Safety Application'!A82) ->  | AO57: =IF('Safety Application'!D82=0,"",'Safety Application'!D82) ->  | AP57: =IF('Safety Application'!E82=0,"",'Safety Application'!E82) ->  | AQ57: =IF('Safety Application'!F82=0,"",'Safety Application'!F82) ->  | AR57: =IF('Safety Application'!G82=0,"",'Safety Application'!G82) ->  | AS57: =IF('Safety Application'!H82=0,"",'Safety Application'!H82) ->  | AT57: =IF('Safety Application'!I82=0,"",'Safety Application'!I82) ->  | AU57: =IF('Safety Application'!A83=0,"",'Safety Application'!A83) ->  | AV57: =IF('Safety Application'!D83=0,"",'Safety Application'!D83) ->  | AW57: =IF('Safety Application'!E83=0,"",'Safety Application'!E83) ->  | AX57: =IF('Safety Application'!F83=0,"",'Safety Application'!F83) ->  | AY57: =IF('Safety Application'!G83=0,"",'Safety Application'!G83) ->  | AZ57: =IF('Safety Application'!H83=0,"",'Safety Application'!H83) ->  | BA57: =IF('Safety Application'!I83=0,"",'Safety Application'!I83) ->  | BB57: =IF('Safety Application'!A84=0,"",'Safety Application'!A84) ->  | BC57: =IF('Safety Application'!D84=0,"",'Safety Application'!D84) ->  | BD57: =IF('Safety Application'!E84=0,"",'Safety Application'!E84) ->  | BE57: =IF('Safety Application'!F84=0,"",'Safety Application'!F84) ->  | BF57: =IF('Safety Application'!G84=0,"",'Safety Application'!G84) ->  | BG57: =IF('Safety Application'!H84=0,"",'Safety Application'!H84) ->  | BH57: =IF('Safety Application'!I84=0,"",'Safety Application'!I84) ->  | BI57: =IF('Safety Application'!A85=0,"",'Safety Application'!A85) ->  | BJ57: =IF('Safety Application'!D85=0,"",'Safety Application'!D85) ->  | BK57: =IF('Safety Application'!E85=0,"",'Safety Application'!E85) ->  | BL57: =IF('Safety Application'!F85=0,"",'Safety Application'!F85) ->  | BM57: =IF('Safety Application'!G85=0,"",'Safety Application'!G85) ->  | BN57: =IF('Safety Application'!H85=0,"",'Safety Application'!H85) ->  | BO57: =IF('Safety Application'!I85=0,"",'Safety Application'!I85) ->  | BP57: =IF('Safety Application'!A86=0,"",'Safety Application'!A86) ->  | BQ57: =IF('Safety Application'!D86=0,"",'Safety Application'!D86) ->  | BR57: =IF('Safety Application'!E86=0,"",'Safety Application'!E86) ->  | BS57: =IF('Safety Application'!F86=0,"",'Safety Application'!F86) ->  | BT57: =IF('Safety Application'!G86=0,"",'Safety Application'!G86) ->  | BU57: =IF('Safety Application'!H86=0,"",'Safety Application'!H86) ->  | BV57: =IF('Safety Application'!I86=0,"",'Safety Application'!I86) ->  | BW57: =IF('Safety Application'!A89=0,"",'Safety Application'!A89) -> ODOT District 12 has been interested in implementing these improvements for over 5 years, as evidenced by the approved IMS from June 22nd, 2015. ODOT District 12 is requesting construction funding only for this improvement and will use district allocation to cover the approximately $2.3 million in funds not requested from the safety committee.
A60: Project Development
A61: https://extranet.dot.state.oh.us/divisions/Planning/plan/HSIP_applications/Lists/ProjectDevelopment/ImportView.aspx
A62: AppID | B62: SafetyStudy_CompBy | C62: SafetyStudy_CompDt | D62: IMS_CompBy | E62: IMS__CompDt | F62: PE_Enviro_CompBy | G62: PE_Enviro_CompDt | H62: PE_Design_CompBy | I62: PE_Design_CompDt | J62: ROW_CompBy | K62: ROW_CompDt
A63: =A57 -> Not Assigned | B63: =IF('Safety Application'!E98=0,"",'Safety Application'!E98) -> GPD Group | C63: =IF('Safety Application'!H98="","",MONTH('Safety Application'!H98)&"/"&DAY('Safety Application'!H98)&"/"&YEAR('Safety Application'!H98)) -> 8/1/2021 | D63: =IF('Safety Application'!E99=0,"",'Safety Application'!E99) -> Parsons Brinckerhoff | E63: =IF('Safety Application'!H99="","",MONTH('Safety Application'!H99)&"/"&DAY('Safety Application'!H99)&"/"&YEAR('Safety Application'!H99)) -> 6/22/2015 | F63: =IF('Safety Application'!E100=0,"",'Safety Application'!E100) ->  | G63: =IF('Safety Application'!H100="","",MONTH('Safety Application'!H100)&"/"&DAY('Safety Application'!H100)&"/"&YEAR('Safety Application'!H100)) ->  | H63: =IF('Safety Application'!E101=0,"",'Safety Application'!E101) ->  | I63: =IF('Safety Application'!H101="","",MONTH('Safety Application'!H101)&"/"&DAY('Safety Application'!H101)&"/"&YEAR('Safety Application'!H101)) ->  | J63: =IF('Safety Application'!E102=0,"",'Safety Application'!E102) ->  | K63: =IF('Safety Application'!H102="","",MONTH('Safety Application'!H102)&"/"&DAY('Safety Application'!H102)&"/"&YEAR('Safety Application'!H102)) -> 
